{"text_format":"1","workbook":"xlsx","n_sheets":15,"sheets":["1","В","Сам","1 (2)","1 (3)","1 (4)","1 (5)","1 (6)","1 (7)","1 (8)","1 (9)","1 (10)","1 (11)","1 (12)","Лист1"],"not_rendered":{"charts":0,"images":0,"macros":1,"external_links":0,"defined_names":13,"comments":0,"pivot_tables":0},"unopened":[],"bounds":{"document_bytes":16777216,"sheet_cells":100000,"rows_first":2000,"rows_last":500,"rows_between":2000,"halvings":0,"cell_chars":16384,"cell_head_chars":4096},"cells_cut":0,"cells_raw":0,"read":"whole","date_system":"1900"}

{"sheet":"1","index":0,"n_rows":49,"n_cols":17,"rows_kept":49,"cut":false,"hidden":false,"merged":[[38,1,38,3],[38,6,38,8],[48,1,48,3],[48,6,48,8],[8,10,8,12],[8,1,8,3],[8,6,8,8],[18,1,18,3],[18,6,18,8],[28,1,28,3],[28,6,28,8],[10,10,10,16]]}
[null,null,null,"Form 7",null,null,null,null,"Form 7"]
[{"$f":"J2","v":1},{"$f":"K2","v":0},{"$f":"L2","v":0},{"$f":"M2","v":0},null,{"$f":"A2","v":1},{"$f":"B2","v":0},{"$f":"C2","v":0},{"$f":"D2","v":0},1,null,null,null,"@"]
[{"$f":"J3","v":2},0,0,0,null,{"$f":"A3","v":2},0,0,0,2,null,null,null,"@"]
[3,0,0,0,null,3,0,0,0,3,null,null,null,"@"]
[4,0,0,0,null,4,0,0,0,4,null,null,null,"@"]
[5,0,0,0,null,5,0,0,0,5,null,null,null,"@"]
[6,0,0,0,null,6,0,0,0,6,null,null,null,"@"]
[7,0,0,0,null,7,0,0,0,7,null,null,null,"@"]
[8,"      ",null,null,null,8,{"$f":"K9","v":"      "},null,null,8,{"$f":"CONCATENATE(K5,\" \",K4,\" \",K8,\" \",K2,\" \",K7,\" \",K6,\" \",K3,)","v":"      "}]
[]
[null,null,null,"Form 7",null,null,null,null,"Form 7"]
[1,{"$f":"B2","v":0},0,0,null,1,{"$f":"B12","v":0},{"$f":"C12","v":0},{"$f":"D12","v":0},1,{"$f":"K2","v":0},"(",{"$f":"L2","v":0},")",{"$f":"M2","v":0},null,"@"]
[2,0,0,0,null,2,{"$f":"B13","v":0},0,0,2,0,"(",0,")",0,null,"@"]
[3,0,0,0,null,3,0,0,0,3,0,"(",0,")",0,null,"@"]
[4,0,0,0,null,4,0,0,0,4,0,"(",0,")",0,null,"@"]
[5,0,0,0,null,5,0,0,0,5,0,"(",0,")",0,null,"@"]
[6,0,0,0,null,6,0,0,0,6,0,"(",0,")",0,null,"@"]
[7,0,0,0,null,7,0,0,0,7,0,"(",0,")",0,null,"@"]
[8,{"$f":"B9","v":"      "},null,null,null,8,{"$f":"B9","v":"      "}]
[]
[null,null,null,"Form 7",null,null,null,null,"Form 7"]
[1,{"$f":"B12","v":0},0,0,null,1,{"$f":"B22","v":0},{"$f":"C22","v":0},{"$f":"D22","v":0}]
[2,0,0,0,null,2,{"$f":"B23","v":0},0,0]
[3,0,0,0,null,3,0,0,0]
[4,0,0,0,null,4,0,0,0]
[5,0,0,0,null,5,0,0,0]
[6,0,0,0,null,6,0,0,0]
[7,0,0,0,null,7,0,0,0]
[8,{"$f":"B19","v":"      "},null,null,null,8,{"$f":"B19","v":"      "}]
[]
[null,null,null,"Form 7",null,null,null,null,"Form 7"]
[1,{"$f":"B22","v":0},0,0,null,1,{"$f":"B32","v":0},{"$f":"C32","v":0},{"$f":"D32","v":0}]
[2,0,0,0,null,2,{"$f":"B33","v":0},0,0]
[3,0,0,0,null,3,0,0,0]
[4,0,0,0,null,4,0,0,0]
[5,0,0,0,null,5,0,0,0]
[6,0,0,0,null,6,0,0,0]
[7,0,0,0,null,7,0,0,0]
[8,{"$f":"B29","v":"      "},null,null,null,8,{"$f":"B29","v":"      "}]
[]
[null,null,null,"Form 7",null,null,null,null,"Form 7"]
[1,{"$f":"B32","v":0},0,0,null,1,{"$f":"B42","v":0},{"$f":"C42","v":0},{"$f":"D42","v":0}]
[2,0,0,0,null,2,{"$f":"B43","v":0},{"$f":"C43","v":0},{"$f":"D43","v":0}]
[3,0,0,0,null,3,0,0,0]
[4,0,0,0,null,4,0,0,0]
[5,0,0,0,null,5,0,0,0]
[6,0,0,0,null,6,0,0,0]
[7,0,0,0,null,7,0,0,0]
[8,{"$f":"B39","v":"      "},null,null,null,8,{"$f":"B39","v":"      "}]

{"sheet":"В","index":1,"n_rows":55,"n_cols":13,"rows_kept":55,"cut":false,"hidden":false,"merged":[]}
[null,null,null,"Form 7",null,null,null,null,"Form 7"]
[{"$f":"J2","v":1},{"$f":"K2","v":"meet"},{"$f":"L2","v":"[miːt]"},{"$f":"M2","v":" зустріча́ти(ся"},null,{"$f":"A2","v":1},{"$f":"B2","v":"meet"},{"$f":"C2","v":"[miːt]"},{"$f":"D2","v":" зустріча́ти(ся"},1,"meet","[miːt]"," зустріча́ти(ся"]
[{"$f":"J3","v":2},"chance","[ʧɑːns]"," ви́падок; випадко́вість",null,{"$f":"A3","v":2},"chance","[ʧɑːns]"," ви́падок; випадко́вість",2,"chance","[ʧɑːns]"," ви́падок; випадко́вість"]
[3,"screen","[skriːn]"," екра́н;",null,3,"screen","[skriːn]"," екра́н;",3,"screen","[skriːn]"," екра́н;"]
[4,"studio","[ˈstjuːdɪəu]","сту́дія; ательє́; майсте́рня",null,4,"studio","[ˈstjuːdɪəu]","сту́дія; ательє́; майсте́рня",4,"studio","[ˈstjuːdɪəu]","сту́дія; ательє́; майсте́рня"]
[5,"technology","[tekˈnɒləʤɪ]","техноло́гія; те́хніка; ",null,5,"technology","[tekˈnɒləʤɪ]","техноло́гія; те́хніка; ",5,"technology","[tekˈnɒləʤɪ]","техноло́гія; те́хніка; "]
[6,"use"," [juːz]"," вжива́ти",null,6,"use"," [juːz]"," вжива́ти",6,"use"," [juːz]"," вжива́ти"]
[7,"air","[ɛə]","пові́тря, атмосфе́ра; ",null,7,"air","[ɛə]","пові́тря, атмосфе́ра; ",7,"air","[ɛə]","пові́тря, атмосфе́ра; "]
[8,"the air",",","ефі́р",null,8,"the air",",","ефі́р",8,"the air",",","ефі́р"]
[9,"near","[nɪə]"," бли́зько, поблизу́; ко́ло",null,9,"near","[nɪə]"," бли́зько, поблизу́; ко́ло",9,"near","[nɪə]"," бли́зько, поблизу́; ко́ло"]
[10,0,0,0,null,10,0,0,0,10]
[11,{"$f":"K12","v":0},0,0,null,11,0,0,0,11]
[12,{"$f":"K13","v":0},0,0,null,12,0,0,0,12]
[]
[null,null,null,"Form 7",null,null,null,null,"Form 7"]
[1,{"$f":"B2","v":"meet"},"[miːt]"," зустріча́ти(ся",null,1,{"$f":"B16","v":"meet"},{"$f":"C16","v":"[miːt]"},{"$f":"D16","v":" зустріча́ти(ся"}]
[2,"chance","[ʧɑːns]"," ви́падок; випадко́вість",null,2,{"$f":"B17","v":"chance"},"[ʧɑːns]"," ви́падок; випадко́вість"]
[3,"screen","[skriːn]"," екра́н;",null,3,"screen","[skriːn]"," екра́н;"]
[4,"studio","[ˈstjuːdɪəu]","сту́дія; ательє́; майсте́рня",null,4,"studio","[ˈstjuːdɪəu]","сту́дія; ательє́; майсте́рня"]
[5,"technology","[tekˈnɒləʤɪ]","техноло́гія; те́хніка; ",null,5,"technology","[tekˈnɒləʤɪ]","техноло́гія; те́хніка; "]
[6,"use"," [juːz]"," вжива́ти",null,6,"use"," [juːz]"," вжива́ти"]
[7,"air","[ɛə]","пові́тря, атмосфе́ра; ",null,7,"air","[ɛə]","пові́тря, атмосфе́ра; "]
[8,"the air",",","ефі́р",null,8,"the air",",","ефі́р"]
[9,"near","[nɪə]"," бли́зько, поблизу́; ко́ло",null,9,"near","[nɪə]"," бли́зько, поблизу́; ко́ло"]
[10,0,0,0,null,10,0,0,0]
[11,0,0,0,null,11,0,0,0]
[12,0,0,0,null,12,0,0,0]
[]
[null,null,null,"Form 7",null,null,null,null,"Form 7"]
[1,{"$f":"B16","v":"meet"},"[miːt]"," зустріча́ти(ся",null,1,{"$f":"B30","v":"meet"},{"$f":"C30","v":"[miːt]"},{"$f":"D30","v":" зустріча́ти(ся"}]
[2,"chance","[ʧɑːns]"," ви́падок; випадко́вість",null,2,{"$f":"B31","v":"chance"},"[ʧɑːns]"," ви́падок; випадко́вість"]
[3,"screen","[skriːn]"," екра́н;",null,3,"screen","[skriːn]"," екра́н;"]
[4,"studio","[ˈstjuːdɪəu]","сту́дія; ательє́; майсте́рня",null,4,"studio","[ˈstjuːdɪəu]","сту́дія; ательє́; майсте́рня"]
[5,"technology","[tekˈnɒləʤɪ]","техноло́гія; те́хніка; ",null,5,"technology","[tekˈnɒləʤɪ]","техноло́гія; те́хніка; "]
[6,"use"," [juːz]"," вжива́ти",null,6,"use"," [juːz]"," вжива́ти"]
[7,"air","[ɛə]","пові́тря, атмосфе́ра; ",null,7,"air","[ɛə]","пові́тря, атмосфе́ра; "]
[8,"the air",",","ефі́р",null,8,"the air",",","ефі́р"]
[9,"near","[nɪə]"," бли́зько, поблизу́; ко́ло",null,9,"near","[nɪə]"," бли́зько, поблизу́; ко́ло"]
[10,0,0,0,null,10,0,0,0]
[11,0,0,0,null,11,0,0,0]
[12,0,0,0,null,12,0,0,0]
[]
[null,null,null,"Form 7",null,null,null,null,"Form 7"]
[1,{"$f":"B30","v":"meet"},"[miːt]"," зустріча́ти(ся",null,1,{"$f":"B44","v":"meet"},{"$f":"C44","v":"[miːt]"},{"$f":"D44","v":" зустріча́ти(ся"}]
[2,"chance","[ʧɑːns]"," ви́падок; випадко́вість",null,2,{"$f":"B45","v":"chance"},"[ʧɑːns]"," ви́падок; випадко́вість"]
[3,"screen","[skriːn]"," екра́н;",null,3,"screen","[skriːn]"," екра́н;"]
[4,"studio","[ˈstjuːdɪəu]","сту́дія; ательє́; майсте́рня",null,4,"studio","[ˈstjuːdɪəu]","сту́дія; ательє́; майсте́рня"]
[5,"technology","[tekˈnɒləʤɪ]","техноло́гія; те́хніка; ",null,5,"technology","[tekˈnɒləʤɪ]","техноло́гія; те́хніка; "]
[6,"use"," [juːz]"," вжива́ти",null,6,"use"," [juːz]"," вжива́ти"]
[7,"air","[ɛə]","пові́тря, атмосфе́ра; ",null,7,"air","[ɛə]","пові́тря, атмосфе́ра; "]
[8,"the air",",","ефі́р",null,8,"the air",",","ефі́р"]
[9,"near","[nɪə]"," бли́зько, поблизу́; ко́ло",null,9,"near","[nɪə]"," бли́зько, поблизу́; ко́ло"]
[10,0,0,0,null,10,0,0,0]
[11,0,0,0,null,11,0,0,0]
[12,0,0,0,null,12,0,0,0]

{"sheet":"Сам","index":2,"n_rows":52,"n_cols":21,"rows_kept":52,"cut":false,"hidden":false,"merged":[]}
["Name_________________________   Form 7   Date_______",null,null,null,null,"Name_________________________   Form 7   Date_______",null,null,null,"Name_________________________   Form 7   Date_______",null,null,null,"Name_________________________   Form 7   Date_______"]
[]
[null,{"$f":"S3","v":0},1,{"$f":"V3","v":0},null,null,{"$f":"S3","v":0},1,{"$f":"V3","v":0},{"$f":"S16","v":0},null,null,null,{"$f":"J3","v":0},null,null,null,null,null,null,1]
[null,0,2,0,null,null,{"$f":"S4","v":0},2,{"$f":"V4","v":0},{"$f":"S17","v":0},null,null,null,{"$f":"J4","v":0},null,null,null,null,null,null,2]
[null,0,3,0,null,null,0,3,0,0,null,null,null,0,null,null,null,null,null,null,3]
[null,0,4,0,null,null,0,4,0,0,null,null,null,0,null,null,null,null,null,null,4]
[null,0,5,0,null,null,0,5,0,0,null,null,null,0,null,null,null,null,null,null,5]
[null,0,6,0,null,null,0,6,0,0,null,null,null,0,null,null,null,null,null,null,6]
[null,0,7,0,null,null,0,7,0,0,null,null,null,0,null,null,null,null,null,null,7]
[null,0,8,0,null,null,0,8,0,0,null,null,null,0,null,null,null,null,null,null,8]
[null,0,9,0,null,null,0,9,0,0,null,null,null,0,null,null,null,null,null,null,9]
[null,0,10,0,null,null,0,10,0,0,null,null,null,0,null,null,null,null,null,null,10]
[null,0,11,0,null,null,0,11,0,0,null,null,null,0,null,null,null,null,null,null,11]
[]
["Name_________________________   Form 7   Date_______",null,null,null,null,"Name_________________________   Form 7   Date_______",null,null,null,"Name_________________________   Form 7   Date_______",null,null,null,"Name_________________________   Form 7   Date_______"]
[]
[null,{"$f":"S3","v":0},1,{"$f":"V3","v":0},null,null,{"$f":"B17","v":0},1,{"$f":"D17","v":0},{"$f":"J3","v":0},null,null,null,{"$f":"J17","v":0}]
[null,{"$f":"S4","v":0},2,{"$f":"V4","v":0},null,null,{"$f":"B18","v":0},2,{"$f":"D18","v":0},{"$f":"J4","v":0},null,null,null,{"$f":"J18","v":0}]
[null,0,3,0,null,null,0,3,0,0,null,null,null,0]
[null,0,4,0,null,null,0,4,0,0,null,null,null,0]
[null,0,5,0,null,null,0,5,0,0,null,null,null,0]
[null,0,6,0,null,null,0,6,0,0,null,null,null,0]
[null,0,7,0,null,null,0,7,0,0,null,null,null,0]
[null,0,8,0,null,null,0,8,0,0,null,null,null,0]
[null,0,9,0,null,null,0,9,0,0,null,null,null,0]
[null,0,10,0,null,null,0,10,0,0,null,null,null,0]
[null,0,11,0,null,null,0,11,0,0,null,null,null,0]
[]
["Name_________________________   Form 7   Date_______",null,null,null,null,"Name_________________________   Form 7   Date_______",null,null,null,"Name_________________________   Form 7   Date_______",null,null,null,"Name_________________________   Form 7   Date_______"]
[]
[null,{"$f":"B17","v":0},1,{"$f":"D17","v":0},null,null,{"$f":"B31","v":0},1,{"$f":"D31","v":0},{"$f":"J17","v":0},null,null,null,{"$f":"J31","v":0}]
[null,{"$f":"B18","v":0},2,{"$f":"D18","v":0},null,null,{"$f":"B32","v":0},2,{"$f":"D32","v":0},{"$f":"J18","v":0},null,null,null,{"$f":"J32","v":0}]
[null,0,3,0,null,null,0,3,0,0,null,null,null,0]
[null,0,4,0,null,null,0,4,0,0,null,null,null,0]
[null,0,5,0,null,null,0,5,0,0,null,null,null,0]
[null,0,6,0,null,null,0,6,0,0,null,null,null,0]
[null,0,7,0,null,null,0,7,0,0,null,null,null,0]
[null,0,8,0,null,null,0,8,0,0,null,null,null,0]
[null,0,9,0,null,null,0,9,0,0,null,null,null,0]
[null,0,10,0,null,null,0,10,0,0,null,null,null,0]
[null,0,11,0,null,null,0,11,0,0,null,null,null,0]
[]
["Name_________________________   Form 7   Date_______",null,null,null,null,null,null,null,null,"Name_________________________   Form 7   Date_______"]
[]
[null,{"$f":"B31","v":0},1,{"$f":"D31","v":0},null,null,{"$f":"B39","v":0},9,{"$f":"D39","v":0},{"$f":"J31","v":0},null,null,null,{"$f":"J39","v":0}]
[null,{"$f":"B32","v":0},2,{"$f":"D32","v":0},null,null,{"$f":"B40","v":0},10,{"$f":"D40","v":0},{"$f":"J32","v":0},null,null,null,{"$f":"J40","v":0}]
[null,0,3,0,null,null,{"$f":"B41","v":0},11,{"$f":"D41","v":0},0,null,null,null,{"$f":"J41","v":0}]
[null,0,4,0,null,null,null,null,null,0]
[null,0,5,0,null,null,null,null,null,0]
[null,0,6,0,null,null,null,null,null,0]
[null,{"$f":"B37","v":0},7,{"$f":"D37","v":0},null,null,null,null,null,{"$f":"J37","v":0}]
[null,{"$f":"B38","v":0},8,{"$f":"D38","v":0},null,null,null,null,null,{"$f":"J38","v":0}]

{"sheet":"1 (2)","index":3,"n_rows":49,"n_cols":14,"rows_kept":49,"cut":false,"hidden":false,"merged":[[8,10,8,12],[18,1,18,3],[18,6,18,8],[28,1,28,3],[28,6,28,8],[38,1,38,3],[38,6,38,8],[48,1,48,3],[48,6,48,8],[8,1,8,3],[8,6,8,8]]}
[null,null,null,"Form 7",null,null,null,null,"Form 7"]
[{"$f":"J2","v":1},{"$f":"K2","v":"change"},{"$f":"L2","v":"[ʧeɪnʤ]"},{"$f":"M2","v":"змі́нювати"},null,{"$f":"A2","v":1},{"$f":"B2","v":"change"},{"$f":"C2","v":"[ʧeɪnʤ]"},{"$f":"D2","v":"змі́нювати"},1,"change","[ʧeɪnʤ]","змі́нювати","@"]
[{"$f":"J3","v":2},"canteen","[kænˈtiːn]",{"$f":"M3","v":"їдальня "},null,{"$f":"A3","v":2},"canteen","[kænˈtiːn]","їдальня ",2,"canteen","[kænˈtiːn]","їдальня ","@"]
[3,"locker","[ˈlɒkə]","шафка із замком",null,3,"locker","[ˈlɒkə]","шафка із замком",3,"locker","[ˈlɒkə]","шафка із замком","@"]
[4,"toilet","[ˈtɔɪlɪt]","туале́т, убира́льня",null,4,"toilet","[ˈtɔɪlɪt]","туале́т, убира́льня",4,"toilet","[ˈtɔɪlɪt]","туале́т, убира́льня","@"]
[5,"stair","[stɛə]","схі́дець, щабе́ль",null,5,"stair","[stɛə]","схі́дець, щабе́ль",5,"stair","[stɛə]","схі́дець, щабе́ль","@"]
[6,"entrance","[ˈentrəns]","вихід",null,6,"entrance","[ˈentrəns]","вихід",6,"entrance","[ˈentrəns]","вихід","@"]
[7,0,0,0,null,7,0,0,0,7,null,null,null,"@"]
[8,"toilet locker  change entrance stair canteen",null,null,null,8,{"$f":"K9","v":"toilet locker  change entrance stair canteen"},null,null,8,{"$f":"CONCATENATE(K5,\" \",K4,\" \",K8,\" \",K2,\" \",K7,\" \",K6,\" \",K3,)","v":"toilet locker  change entrance stair canteen"}]
[]
[null,null,null,"Form 7",null,null,null,null,"Form 7"]
[1,{"$f":"B2","v":"change"},"[ʧeɪnʤ]","змі́нювати",null,1,{"$f":"B12","v":"change"},{"$f":"C12","v":"[ʧeɪnʤ]"},{"$f":"D12","v":"змі́нювати"}]
[2,"canteen","[kænˈtiːn]","їдальня ",null,2,{"$f":"B13","v":"canteen"},"[kænˈtiːn]","їдальня "]
[3,"locker","[ˈlɒkə]","шафка із замком",null,3,"locker","[ˈlɒkə]","шафка із замком"]
[4,"toilet","[ˈtɔɪlɪt]","туале́т, убира́льня",null,4,"toilet","[ˈtɔɪlɪt]","туале́т, убира́льня"]
[5,"stair","[stɛə]","схі́дець, щабе́ль",null,5,"stair","[stɛə]","схі́дець, щабе́ль"]
[6,"entrance","[ˈentrəns]","вихід",null,6,"entrance","[ˈentrəns]","вихід"]
[7,0,0,0,null,7,0,0,0]
[8,{"$f":"B9","v":"toilet locker  change entrance stair canteen"},null,null,null,8,{"$f":"B9","v":"toilet locker  change entrance stair canteen"}]
[]
[null,null,null,"Form 7",null,null,null,null,"Form 7"]
[1,{"$f":"B12","v":"change"},"[ʧeɪnʤ]","змі́нювати",null,1,{"$f":"B22","v":"change"},{"$f":"C22","v":"[ʧeɪnʤ]"},{"$f":"D22","v":"змі́нювати"}]
[2,"canteen","[kænˈtiːn]","їдальня ",null,2,{"$f":"B23","v":"canteen"},"[kænˈtiːn]","їдальня "]
[3,"locker","[ˈlɒkə]","шафка із замком",null,3,"locker","[ˈlɒkə]","шафка із замком"]
[4,"toilet","[ˈtɔɪlɪt]","туале́т, убира́льня",null,4,"toilet","[ˈtɔɪlɪt]","туале́т, убира́льня"]
[5,"stair","[stɛə]","схі́дець, щабе́ль",null,5,"stair","[stɛə]","схі́дець, щабе́ль"]
[6,"entrance","[ˈentrəns]","вихід",null,6,"entrance","[ˈentrəns]","вихід"]
[7,0,0,0,null,7,0,0,0]
[8,{"$f":"B19","v":"toilet locker  change entrance stair canteen"},null,null,null,8,{"$f":"B19","v":"toilet locker  change entrance stair canteen"}]
[]
[null,null,null,"Form 7",null,null,null,null,"Form 7"]
[1,{"$f":"B22","v":"change"},"[ʧeɪnʤ]","змі́нювати",null,1,{"$f":"B32","v":"change"},{"$f":"C32","v":"[ʧeɪnʤ]"},{"$f":"D32","v":"змі́нювати"}]
[2,"canteen","[kænˈtiːn]","їдальня ",null,2,{"$f":"B33","v":"canteen"},"[kænˈtiːn]","їдальня "]
[3,"locker","[ˈlɒkə]","шафка із замком",null,3,"locker","[ˈlɒkə]","шафка із замком"]
[4,"toilet","[ˈtɔɪlɪt]","туале́т, убира́льня",null,4,"toilet","[ˈtɔɪlɪt]","туале́т, убира́льня"]
[5,"stair","[stɛə]","схі́дець, щабе́ль",null,5,"stair","[stɛə]","схі́дець, щабе́ль"]
[6,"entrance","[ˈentrəns]","вихід",null,6,"entrance","[ˈentrəns]","вихід"]
[7,0,0,0,null,7,0,0,0]
[8,{"$f":"B29","v":"toilet locker  change entrance stair canteen"},null,null,null,8,{"$f":"B29","v":"toilet locker  change entrance stair canteen"}]
[]
[null,null,null,"Form 7",null,null,null,null,"Form 7"]
[1,{"$f":"B32","v":"change"},"[ʧeɪnʤ]","змі́нювати",null,1,{"$f":"B42","v":"change"},{"$f":"C42","v":"[ʧeɪnʤ]"},{"$f":"D42","v":"змі́нювати"}]
[2,"canteen","[kænˈtiːn]","їдальня ",null,2,{"$f":"B43","v":"canteen"},"[kænˈtiːn]","їдальня "]
[3,"locker","[ˈlɒkə]","шафка із замком",null,3,"locker","[ˈlɒkə]","шафка із замком"]
[4,"toilet","[ˈtɔɪlɪt]","туале́т, убира́льня",null,4,"toilet","[ˈtɔɪlɪt]","туале́т, убира́льня"]
[5,"stair","[stɛə]","схі́дець, щабе́ль",null,5,"stair","[stɛə]","схі́дець, щабе́ль"]
[6,"entrance","[ˈentrəns]","вихід",null,6,"entrance","[ˈentrəns]","вихід"]
[7,0,0,0,null,7,0,0,0]
[8,{"$f":"B39","v":"toilet locker  change entrance stair canteen"},null,null,null,8,{"$f":"B39","v":"toilet locker  change entrance stair canteen"}]

{"sheet":"1 (3)","index":4,"n_rows":49,"n_cols":14,"rows_kept":49,"cut":false,"hidden":false,"merged":[[38,1,38,3],[38,6,38,8],[48,1,48,3],[48,6,48,8],[8,1,8,3],[8,6,8,8],[8,10,8,12],[18,1,18,3],[18,6,18,8],[28,1,28,3],[28,6,28,8]]}
[null,null,null,"Form 7",null,null,null,null,"Form 7"]
[{"$f":"J2","v":1},{"$f":"K2","v":"sound"},{"$f":"L2","v":"[saund]"},{"$f":"M2","v":" звук,  звуча́ти"},null,{"$f":"A2","v":1},{"$f":"B2","v":"sound"},{"$f":"C2","v":"[saund]"},{"$f":"D2","v":" звук,  звуча́ти"},1,"sound","[saund]"," звук,  звуча́ти","@"]
[{"$f":"J3","v":2},"modern","[ˈmɒd(ə)n]","суча́сний, модерний",null,{"$f":"A3","v":2},"modern","[ˈmɒd(ə)n]","суча́сний, модерний",2,"modern","[ˈmɒd(ə)n]","суча́сний, модерний","@"]
[3,"space","[speɪs]","про́стір",null,3,"space","[speɪs]","про́стір",3,"space","[speɪs]","про́стір","@"]
[4,"fair","[fɛə]","біля́вий,  справедли́вий",null,4,"fair","[fɛə]","біля́вий,  справедли́вий",4,"fair","[fɛə]","біля́вий,  справедли́вий","@"]
[5,"hungry","[ˈhʌŋgrɪ]","голо́дний; ",null,5,"hungry","[ˈhʌŋgrɪ]","голо́дний; ",5,"hungry","[ˈhʌŋgrɪ]","голо́дний; ","@"]
[6,"mean","[miːn]"," означа́ти, ма́ти зна́чення",null,6,"mean","[miːn]"," означа́ти, ма́ти зна́чення",6,"mean","[miːn]"," означа́ти, ма́ти зна́чення","@"]
[7,"laugh","[lɑːf]","сміх, смія́тися; ",null,7,"laugh","[lɑːf]","сміх, смія́тися; ",7,"laugh","[lɑːf]","сміх, смія́тися; ","@"]
[8,"fair space laugh sound mean hungry modern",null,null,null,8,{"$f":"K9","v":"fair space laugh sound mean hungry modern"},null,null,8,{"$f":"CONCATENATE(K5,\" \",K4,\" \",K8,\" \",K2,\" \",K7,\" \",K6,\" \",K3,)","v":"fair space laugh sound mean hungry modern"}]
[]
[null,null,null,"Form 7",null,null,null,null,"Form 7"]
[1,{"$f":"B2","v":"sound"},"[saund]"," звук,  звуча́ти",null,1,{"$f":"B12","v":"sound"},{"$f":"C12","v":"[saund]"},{"$f":"D12","v":" звук,  звуча́ти"}]
[2,"modern","[ˈmɒd(ə)n]","суча́сний, модерний",null,2,{"$f":"B13","v":"modern"},"[ˈmɒd(ə)n]","суча́сний, модерний"]
[3,"space","[speɪs]","про́стір",null,3,"space","[speɪs]","про́стір"]
[4,"fair","[fɛə]","біля́вий,  справедли́вий",null,4,"fair","[fɛə]","біля́вий,  справедли́вий"]
[5,"hungry","[ˈhʌŋgrɪ]","голо́дний; ",null,5,"hungry","[ˈhʌŋgrɪ]","голо́дний; "]
[6,"mean","[miːn]"," означа́ти, ма́ти зна́чення",null,6,"mean","[miːn]"," означа́ти, ма́ти зна́чення"]
[7,"laugh","[lɑːf]","сміх, смія́тися; ",null,7,"laugh","[lɑːf]","сміх, смія́тися; "]
[8,{"$f":"B9","v":"fair space laugh sound mean hungry modern"},null,null,null,8,{"$f":"B9","v":"fair space laugh sound mean hungry modern"}]
[]
[null,null,null,"Form 7",null,null,null,null,"Form 7"]
[1,{"$f":"B12","v":"sound"},"[saund]"," звук,  звуча́ти",null,1,{"$f":"B22","v":"sound"},{"$f":"C22","v":"[saund]"},{"$f":"D22","v":" звук,  звуча́ти"}]
[2,"modern","[ˈmɒd(ə)n]","суча́сний, модерний",null,2,{"$f":"B23","v":"modern"},"[ˈmɒd(ə)n]","суча́сний, модерний"]
[3,"space","[speɪs]","про́стір",null,3,"space","[speɪs]","про́стір"]
[4,"fair","[fɛə]","біля́вий,  справедли́вий",null,4,"fair","[fɛə]","біля́вий,  справедли́вий"]
[5,"hungry","[ˈhʌŋgrɪ]","голо́дний; ",null,5,"hungry","[ˈhʌŋgrɪ]","голо́дний; "]
[6,"mean","[miːn]"," означа́ти, ма́ти зна́чення",null,6,"mean","[miːn]"," означа́ти, ма́ти зна́чення"]
[7,"laugh","[lɑːf]","сміх, смія́тися; ",null,7,"laugh","[lɑːf]","сміх, смія́тися; "]
[8,{"$f":"B19","v":"fair space laugh sound mean hungry modern"},null,null,null,8,{"$f":"B19","v":"fair space laugh sound mean hungry modern"}]
[]
[null,null,null,"Form 7",null,null,null,null,"Form 7"]
[1,{"$f":"B22","v":"sound"},"[saund]"," звук,  звуча́ти",null,1,{"$f":"B32","v":"sound"},{"$f":"C32","v":"[saund]"},{"$f":"D32","v":" звук,  звуча́ти"}]
[2,"modern","[ˈmɒd(ə)n]","суча́сний, модерний",null,2,{"$f":"B33","v":"modern"},"[ˈmɒd(ə)n]","суча́сний, модерний"]
[3,"space","[speɪs]","про́стір",null,3,"space","[speɪs]","про́стір"]
[4,"fair","[fɛə]","біля́вий,  справедли́вий",null,4,"fair","[fɛə]","біля́вий,  справедли́вий"]
[5,"hungry","[ˈhʌŋgrɪ]","голо́дний; ",null,5,"hungry","[ˈhʌŋgrɪ]","голо́дний; "]
[6,"mean","[miːn]"," означа́ти, ма́ти зна́чення",null,6,"mean","[miːn]"," означа́ти, ма́ти зна́чення"]
[7,"laugh","[lɑːf]","сміх, смія́тися; ",null,7,"laugh","[lɑːf]","сміх, смія́тися; "]
[8,{"$f":"B29","v":"fair space laugh sound mean hungry modern"},null,null,null,8,{"$f":"B29","v":"fair space laugh sound mean hungry modern"}]
[]
[null,null,null,"Form 7",null,null,null,null,"Form 7"]
[1,{"$f":"B32","v":"sound"},"[saund]"," звук,  звуча́ти",null,1,{"$f":"B42","v":"sound"},{"$f":"C42","v":"[saund]"},{"$f":"D42","v":" звук,  звуча́ти"}]
[2,"modern","[ˈmɒd(ə)n]","суча́сний, модерний",null,2,{"$f":"B43","v":"modern"},"[ˈmɒd(ə)n]","суча́сний, модерний"]
[3,"space","[speɪs]","про́стір",null,3,"space","[speɪs]","про́стір"]
[4,"fair","[fɛə]","біля́вий,  справедли́вий",null,4,"fair","[fɛə]","біля́вий,  справедли́вий"]
[5,"hungry","[ˈhʌŋgrɪ]","голо́дний; ",null,5,"hungry","[ˈhʌŋgrɪ]","голо́дний; "]
[6,"mean","[miːn]"," означа́ти, ма́ти зна́чення",null,6,"mean","[miːn]"," означа́ти, ма́ти зна́чення"]
[7,"laugh","[lɑːf]","сміх, смія́тися; ",null,7,"laugh","[lɑːf]","сміх, смія́тися; "]
[8,{"$f":"B39","v":"fair space laugh sound mean hungry modern"},null,null,null,8,{"$f":"B39","v":"fair space laugh sound mean hungry modern"}]

{"sheet":"1 (4)","index":5,"n_rows":49,"n_cols":16,"rows_kept":49,"cut":false,"hidden":false,"merged":[[8,10,8,12],[18,1,18,3],[18,6,18,8],[28,1,28,3],[28,6,28,8],[38,1,38,3],[38,6,38,8],[48,1,48,3],[48,6,48,8],[8,1,8,3],[8,6,8,8]]}
[null,null,null,"Form 7",null,null,null,null,"Form 7"]
[{"$f":"J2","v":1},{"$f":"K2","v":0},{"$f":"L2","v":0},{"$f":"M2","v":0},null,{"$f":"A2","v":1},{"$f":"B2","v":0},{"$f":"C2","v":0},{"$f":"D2","v":0},1,null,null,null,"@"]
[{"$f":"J3","v":2},0,0,0,null,{"$f":"A3","v":2},0,0,0,2,null,null,null,"@"]
[3,0,0,0,null,3,0,0,0,3,null,null,null,"@"]
[4,0,0,0,null,4,0,0,0,4,null,null,null,"@"]
[5,0,0,0,null,5,0,0,0,5,null,null,null,"@"]
[6,0,0,0,null,6,0,0,0,6,null,null,null,"@",null,"meet"]
[7,0,0,0,null,7,0,0,0,7,null,null,null,"@",null,"chance"]
[8,"      ",null,null,null,8,{"$f":"K9","v":"      "},null,null,8,{"$f":"CONCATENATE(K5,\" \",K4,\" \",K8,\" \",K2,\" \",K7,\" \",K6,\" \",K3,)","v":"      "},null,null,null,null,"screen"]
[null,null,null,null,null,null,null,null,null,null,null,null,null,null,null,"studios"]
[null,null,null,"Form 7",null,null,null,null,"Form 7",null,null,null,null,null,null,"technology"]
[1,{"$f":"B2","v":0},0,0,null,1,{"$f":"B12","v":0},{"$f":"C12","v":0},{"$f":"D12","v":0},null,null,null,null,null,null,"use"]
[2,0,0,0,null,2,{"$f":"B13","v":0},0,0,null,null,null,null,null,null,"Air"]
[3,0,0,0,null,3,0,0,0,null,null,null,null,null,null,"near"]
[4,0,0,0,null,4,0,0,0]
[5,0,0,0,null,5,0,0,0]
[6,0,0,0,null,6,0,0,0]
[7,0,0,0,null,7,0,0,0]
[8,{"$f":"B9","v":"      "},null,null,null,8,{"$f":"B9","v":"      "}]
[]
[null,null,null,"Form 7",null,null,null,null,"Form 7"]
[1,{"$f":"B12","v":0},0,0,null,1,{"$f":"B22","v":0},{"$f":"C22","v":0},{"$f":"D22","v":0}]
[2,0,0,0,null,2,{"$f":"B23","v":0},0,0]
[3,0,0,0,null,3,0,0,0]
[4,0,0,0,null,4,0,0,0]
[5,0,0,0,null,5,0,0,0]
[6,0,0,0,null,6,0,0,0]
[7,0,0,0,null,7,0,0,0]
[8,{"$f":"B19","v":"      "},null,null,null,8,{"$f":"B19","v":"      "}]
[]
[null,null,null,"Form 7",null,null,null,null,"Form 7"]
[1,{"$f":"B22","v":0},0,0,null,1,{"$f":"B32","v":0},{"$f":"C32","v":0},{"$f":"D32","v":0}]
[2,0,0,0,null,2,{"$f":"B33","v":0},0,0]
[3,0,0,0,null,3,0,0,0]
[4,0,0,0,null,4,0,0,0]
[5,0,0,0,null,5,0,0,0]
[6,0,0,0,null,6,0,0,0]
[7,0,0,0,null,7,0,0,0]
[8,{"$f":"B29","v":"      "},null,null,null,8,{"$f":"B29","v":"      "}]
[]
[null,null,null,"Form 7",null,null,null,null,"Form 7"]
[1,{"$f":"B32","v":0},0,0,null,1,{"$f":"B42","v":0},{"$f":"C42","v":0},{"$f":"D42","v":0}]
[2,0,0,0,null,2,{"$f":"B43","v":0},0,0]
[3,0,0,0,null,3,0,0,0]
[4,0,0,0,null,4,0,0,0]
[5,0,0,0,null,5,0,0,0]
[6,0,0,0,null,6,0,0,0]
[7,0,0,0,null,7,0,0,0]
[8,{"$f":"B39","v":"      "},null,null,null,8,{"$f":"B39","v":"      "}]

{"sheet":"1 (5)","index":6,"n_rows":49,"n_cols":14,"rows_kept":49,"cut":false,"hidden":false,"merged":[[38,1,38,3],[38,6,38,8],[48,1,48,3],[48,6,48,8],[8,1,8,3],[8,6,8,8],[8,10,8,12],[18,1,18,3],[18,6,18,8],[28,1,28,3],[28,6,28,8]]}
[null,null,null,"Form 7",null,null,null,null,"Form 7"]
[{"$f":"J2","v":1},{"$f":"K2","v":"trainers"},{"$f":"L2","v":"[ˈtreɪnəz]"},{"$f":"M2","v":"кросівки"},null,{"$f":"A2","v":1},{"$f":"B2","v":"trainers"},{"$f":"C2","v":"[ˈtreɪnəz]"},{"$f":"D2","v":"кросівки"},1,"trainers","[ˈtreɪnəz]","кросівки","@"]
[{"$f":"J3","v":2},"jewellery","[ˈʤuːəlrɪ]","кошто́вності",null,{"$f":"A3","v":2},"jewellery","[ˈʤuːəlrɪ]","кошто́вності",2,"jewellery","[ˈʤuːəlrɪ]","кошто́вності","@"]
[3,"tie","[taɪ]","га́лстук, крава́тка",null,3,"tie","[taɪ]","га́лстук, крава́тка",3,"tie","[taɪ]","га́лстук, крава́тка","@"]
[4,"noise","[nɔɪz]","шум; го́мін,",null,4,"noise","[nɔɪz]","шум; го́мін,",4,"noise","[nɔɪz]","шум; го́мін,","@"]
[5,"corridor","[ˈkɒrɪdɔː]","коридо́р",null,5,"corridor","[ˈkɒrɪdɔː]","коридо́р",5,"corridor","[ˈkɒrɪdɔː]","коридо́р","@"]
[6,"during","[ˈdjuərɪŋ]","про́тягом, під час",null,6,"during","[ˈdjuərɪŋ]","про́тягом, під час",6,"during","[ˈdjuərɪŋ]","про́тягом, під час","@"]
[7,"pullover","[ˈpʊlˌəuvə]","пуло́вер, светр",null,7,"pullover","[ˈpʊlˌəuvə]","пуло́вер, светр",7,"pullover","[ˈpʊlˌəuvə]","пуло́вер, светр","@"]
[8,"noise tie pullover trainers during corridor jewellery",null,null,null,8,{"$f":"K9","v":"noise tie pullover trainers during corridor jewellery"},null,null,8,{"$f":"CONCATENATE(K5,\" \",K4,\" \",K8,\" \",K2,\" \",K7,\" \",K6,\" \",K3,)","v":"noise tie pullover trainers during corridor jewellery"}]
[]
[null,null,null,"Form 7",null,null,null,null,"Form 7"]
[1,{"$f":"B2","v":"trainers"},"[ˈtreɪnəz]","кросівки",null,1,{"$f":"B12","v":"trainers"},{"$f":"C12","v":"[ˈtreɪnəz]"},{"$f":"D12","v":"кросівки"}]
[2,"jewellery","[ˈʤuːəlrɪ]","кошто́вності",null,2,{"$f":"B13","v":"jewellery"},"[ˈʤuːəlrɪ]","кошто́вності"]
[3,"tie","[taɪ]","га́лстук, крава́тка",null,3,"tie","[taɪ]","га́лстук, крава́тка"]
[4,"noise","[nɔɪz]","шум; го́мін,",null,4,"noise","[nɔɪz]","шум; го́мін,"]
[5,"corridor","[ˈkɒrɪdɔː]","коридо́р",null,5,"corridor","[ˈkɒrɪdɔː]","коридо́р"]
[6,"during","[ˈdjuərɪŋ]","про́тягом, під час",null,6,"during","[ˈdjuərɪŋ]","про́тягом, під час"]
[7,"pullover","[ˈpʊlˌəuvə]","пуло́вер, светр",null,7,"pullover","[ˈpʊlˌəuvə]","пуло́вер, светр"]
[8,{"$f":"B9","v":"noise tie pullover trainers during corridor jewellery"},null,null,null,8,{"$f":"B9","v":"noise tie pullover trainers during corridor jewellery"}]
[]
[null,null,null,"Form 7",null,null,null,null,"Form 7"]
[1,{"$f":"B12","v":"trainers"},"[ˈtreɪnəz]","кросівки",null,1,{"$f":"B22","v":"trainers"},{"$f":"C22","v":"[ˈtreɪnəz]"},{"$f":"D22","v":"кросівки"}]
[2,"jewellery","[ˈʤuːəlrɪ]","кошто́вності",null,2,{"$f":"B23","v":"jewellery"},"[ˈʤuːəlrɪ]","кошто́вності"]
[3,"tie","[taɪ]","га́лстук, крава́тка",null,3,"tie","[taɪ]","га́лстук, крава́тка"]
[4,"noise","[nɔɪz]","шум; го́мін,",null,4,"noise","[nɔɪz]","шум; го́мін,"]
[5,"corridor","[ˈkɒrɪdɔː]","коридо́р",null,5,"corridor","[ˈkɒrɪdɔː]","коридо́р"]
[6,"during","[ˈdjuərɪŋ]","про́тягом, під час",null,6,"during","[ˈdjuərɪŋ]","про́тягом, під час"]
[7,"pullover","[ˈpʊlˌəuvə]","пуло́вер, светр",null,7,"pullover","[ˈpʊlˌəuvə]","пуло́вер, светр"]
[8,{"$f":"B19","v":"noise tie pullover trainers during corridor jewellery"},null,null,null,8,{"$f":"B19","v":"noise tie pullover trainers during corridor jewellery"}]
[]
[null,null,null,"Form 7",null,null,null,null,"Form 7"]
[1,{"$f":"B22","v":"trainers"},"[ˈtreɪnəz]","кросівки",null,1,{"$f":"B32","v":"trainers"},{"$f":"C32","v":"[ˈtreɪnəz]"},{"$f":"D32","v":"кросівки"}]
[2,"jewellery","[ˈʤuːəlrɪ]","кошто́вності",null,2,{"$f":"B33","v":"jewellery"},"[ˈʤuːəlrɪ]","кошто́вності"]
[3,"tie","[taɪ]","га́лстук, крава́тка",null,3,"tie","[taɪ]","га́лстук, крава́тка"]
[4,"noise","[nɔɪz]","шум; го́мін,",null,4,"noise","[nɔɪz]","шум; го́мін,"]
[5,"corridor","[ˈkɒrɪdɔː]","коридо́р",null,5,"corridor","[ˈkɒrɪdɔː]","коридо́р"]
[6,"during","[ˈdjuərɪŋ]","про́тягом, під час",null,6,"during","[ˈdjuərɪŋ]","про́тягом, під час"]
[7,"pullover","[ˈpʊlˌəuvə]","пуло́вер, светр",null,7,"pullover","[ˈpʊlˌəuvə]","пуло́вер, светр"]
[8,{"$f":"B29","v":"noise tie pullover trainers during corridor jewellery"},null,null,null,8,{"$f":"B29","v":"noise tie pullover trainers during corridor jewellery"}]
[]
[null,null,null,"Form 7",null,null,null,null,"Form 7"]
[1,{"$f":"B32","v":"trainers"},"[ˈtreɪnəz]","кросівки",null,1,{"$f":"B42","v":"trainers"},{"$f":"C42","v":"[ˈtreɪnəz]"},{"$f":"D42","v":"кросівки"}]
[2,"jewellery","[ˈʤuːəlrɪ]","кошто́вності",null,2,{"$f":"B43","v":"jewellery"},"[ˈʤuːəlrɪ]","кошто́вності"]
[3,"tie","[taɪ]","га́лстук, крава́тка",null,3,"tie","[taɪ]","га́лстук, крава́тка"]
[4,"noise","[nɔɪz]","шум; го́мін,",null,4,"noise","[nɔɪz]","шум; го́мін,"]
[5,"corridor","[ˈkɒrɪdɔː]","коридо́р",null,5,"corridor","[ˈkɒrɪdɔː]","коридо́р"]
[6,"during","[ˈdjuərɪŋ]","про́тягом, під час",null,6,"during","[ˈdjuərɪŋ]","про́тягом, під час"]
[7,"pullover","[ˈpʊlˌəuvə]","пуло́вер, светр",null,7,"pullover","[ˈpʊlˌəuvə]","пуло́вер, светр"]
[8,{"$f":"B39","v":"noise tie pullover trainers during corridor jewellery"},null,null,null,8,{"$f":"B39","v":"noise tie pullover trainers during corridor jewellery"}]

{"sheet":"1 (6)","index":7,"n_rows":49,"n_cols":14,"rows_kept":49,"cut":false,"hidden":false,"merged":[[38,1,38,3],[38,6,38,8],[48,1,48,3],[48,6,48,8],[8,1,8,3],[8,6,8,8],[8,10,8,12],[18,1,18,3],[18,6,18,8],[28,1,28,3],[28,6,28,8]]}
[null,null,null,"Form 7",null,null,null,null,"Form 7"]
[{"$f":"J2","v":1},{"$f":"K2","v":"cover"},{"$f":"L2","v":"[ˈkʌvə]"},{"$f":"M2","v":"прикрива́ти; вкрива́ти"},null,{"$f":"A2","v":1},{"$f":"B2","v":"cover"},{"$f":"C2","v":"[ˈkʌvə]"},{"$f":"D2","v":"прикрива́ти; вкрива́ти"},1,"cover","[ˈkʌvə]","прикрива́ти; вкрива́ти","@"]
[{"$f":"J3","v":2},"event","[ɪˈvent]","поді́я; ви́падок",null,{"$f":"A3","v":2},"event","[ɪˈvent]","поді́я; ви́падок",2,"event","[ɪˈvent]","поді́я; ви́падок","@"]
[3,"twice","[twaɪs]","дві́чі",null,3,"twice","[twaɪs]","дві́чі",3,"twice","[twaɪs]","дві́чі","@"]
[4,"hang","[ˈhæŋ]","ви́сіти, звиса́ти",null,4,"hang","[ˈhæŋ]","ви́сіти, звиса́ти",4,"hang","[ˈhæŋ]","ви́сіти, звиса́ти","@"]
[5,"against","[əˈgeɪnst]","про́ти, навпро́ти",null,5,"against","[əˈgeɪnst]","про́ти, навпро́ти",5,"against","[əˈgeɪnst]","про́ти, навпро́ти","@"]
[6,"mad","[mæd]","божеві́льний",null,6,"mad","[mæd]","божеві́льний",6,"mad","[mæd]","божеві́льний","@"]
[7,"ticket","[ˈtɪkɪt]","квито́к",null,7,"ticket","[ˈtɪkɪt]","квито́к",7,"ticket","[ˈtɪkɪt]","квито́к","@"]
[8,"hang twice ticket cover mad against event",null,null,null,8,{"$f":"K9","v":"hang twice ticket cover mad against event"},null,null,8,{"$f":"CONCATENATE(K5,\" \",K4,\" \",K8,\" \",K2,\" \",K7,\" \",K6,\" \",K3,)","v":"hang twice ticket cover mad against event"}]
[]
[null,null,null,"Form 7",null,null,null,null,"Form 7"]
[1,{"$f":"B2","v":"cover"},"[ˈkʌvə]","прикрива́ти; вкрива́ти",null,1,{"$f":"B12","v":"cover"},{"$f":"C12","v":"[ˈkʌvə]"},{"$f":"D12","v":"прикрива́ти; вкрива́ти"}]
[2,"event","[ɪˈvent]","поді́я; ви́падок",null,2,{"$f":"B13","v":"event"},"[ɪˈvent]","поді́я; ви́падок"]
[3,"twice","[twaɪs]","дві́чі",null,3,"twice","[twaɪs]","дві́чі"]
[4,"hang","[ˈhæŋ]","ви́сіти, звиса́ти",null,4,"hang","[ˈhæŋ]","ви́сіти, звиса́ти"]
[5,"against","[əˈgeɪnst]","про́ти, навпро́ти",null,5,"against","[əˈgeɪnst]","про́ти, навпро́ти"]
[6,"mad","[mæd]","божеві́льний",null,6,"mad","[mæd]","божеві́льний"]
[7,"ticket","[ˈtɪkɪt]","квито́к",null,7,"ticket","[ˈtɪkɪt]","квито́к"]
[8,{"$f":"B9","v":"hang twice ticket cover mad against event"},null,null,null,8,{"$f":"B9","v":"hang twice ticket cover mad against event"}]
[]
[null,null,null,"Form 7",null,null,null,null,"Form 7"]
[1,{"$f":"B12","v":"cover"},"[ˈkʌvə]","прикрива́ти; вкрива́ти",null,1,{"$f":"B22","v":"cover"},{"$f":"C22","v":"[ˈkʌvə]"},{"$f":"D22","v":"прикрива́ти; вкрива́ти"}]
[2,"event","[ɪˈvent]","поді́я; ви́падок",null,2,{"$f":"B23","v":"event"},"[ɪˈvent]","поді́я; ви́падок"]
[3,"twice","[twaɪs]","дві́чі",null,3,"twice","[twaɪs]","дві́чі"]
[4,"hang","[ˈhæŋ]","ви́сіти, звиса́ти",null,4,"hang","[ˈhæŋ]","ви́сіти, звиса́ти"]
[5,"against","[əˈgeɪnst]","про́ти, навпро́ти",null,5,"against","[əˈgeɪnst]","про́ти, навпро́ти"]
[6,"mad","[mæd]","божеві́льний",null,6,"mad","[mæd]","божеві́льний"]
[7,"ticket","[ˈtɪkɪt]","квито́к",null,7,"ticket","[ˈtɪkɪt]","квито́к"]
[8,{"$f":"B19","v":"hang twice ticket cover mad against event"},null,null,null,8,{"$f":"B19","v":"hang twice ticket cover mad against event"}]
[]
[null,null,null,"Form 7",null,null,null,null,"Form 7"]
[1,{"$f":"B22","v":"cover"},"[ˈkʌvə]","прикрива́ти; вкрива́ти",null,1,{"$f":"B32","v":"cover"},{"$f":"C32","v":"[ˈkʌvə]"},{"$f":"D32","v":"прикрива́ти; вкрива́ти"}]
[2,"event","[ɪˈvent]","поді́я; ви́падок",null,2,{"$f":"B33","v":"event"},"[ɪˈvent]","поді́я; ви́падок"]
[3,"twice","[twaɪs]","дві́чі",null,3,"twice","[twaɪs]","дві́чі"]
[4,"hang","[ˈhæŋ]","ви́сіти, звиса́ти",null,4,"hang","[ˈhæŋ]","ви́сіти, звиса́ти"]
[5,"against","[əˈgeɪnst]","про́ти, навпро́ти",null,5,"against","[əˈgeɪnst]","про́ти, навпро́ти"]
[6,"mad","[mæd]","божеві́льний",null,6,"mad","[mæd]","божеві́льний"]
[7,"ticket","[ˈtɪkɪt]","квито́к",null,7,"ticket","[ˈtɪkɪt]","квито́к"]
[8,{"$f":"B29","v":"hang twice ticket cover mad against event"},null,null,null,8,{"$f":"B29","v":"hang twice ticket cover mad against event"}]
[]
[null,null,null,"Form 7",null,null,null,null,"Form 7"]
[1,{"$f":"B32","v":"cover"},"[ˈkʌvə]","прикрива́ти; вкрива́ти",null,1,{"$f":"B42","v":"cover"},{"$f":"C42","v":"[ˈkʌvə]"},{"$f":"D42","v":"прикрива́ти; вкрива́ти"}]
[2,"event","[ɪˈvent]","поді́я; ви́падок",null,2,{"$f":"B43","v":"event"},"[ɪˈvent]","поді́я; ви́падок"]
[3,"twice","[twaɪs]","дві́чі",null,3,"twice","[twaɪs]","дві́чі"]
[4,"hang","[ˈhæŋ]","ви́сіти, звиса́ти",null,4,"hang","[ˈhæŋ]","ви́сіти, звиса́ти"]
[5,"against","[əˈgeɪnst]","про́ти, навпро́ти",null,5,"against","[əˈgeɪnst]","про́ти, навпро́ти"]
[6,"mad","[mæd]","божеві́льний",null,6,"mad","[mæd]","божеві́льний"]
[7,"ticket","[ˈtɪkɪt]","квито́к",null,7,"ticket","[ˈtɪkɪt]","квито́к"]
[8,{"$f":"B39","v":"hang twice ticket cover mad against event"},null,null,null,8,{"$f":"B39","v":"hang twice ticket cover mad against event"}]

{"sheet":"1 (7)","index":8,"n_rows":49,"n_cols":14,"rows_kept":49,"cut":false,"hidden":false,"merged":[[8,10,8,12],[18,1,18,3],[18,6,18,8],[28,1,28,3],[28,6,28,8],[38,1,38,3],[38,6,38,8],[48,1,48,3],[48,6,48,8],[8,1,8,3],[8,6,8,8]]}
[null,null,null,"Form 7",null,null,null,null,"Form 7"]
[{"$f":"J2","v":1},{"$f":"K2","v":"iron"},{"$f":"L2","v":"[ˈaɪən]"},{"$f":"M2","v":"залі́зо"},null,{"$f":"A2","v":1},{"$f":"B2","v":"iron"},{"$f":"C2","v":"[ˈaɪən]"},{"$f":"D2","v":"залі́зо"},1,"iron","[ˈaɪən]","залі́зо","@"]
[{"$f":"J3","v":2},"sweep","[swiːp]","пвдмвтати",null,{"$f":"A3","v":2},"sweep","[swiːp]","пвдмвтати",2,"sweep","[swiːp]","пвдмвтати","@"]
[3,"plant","[plɑːnt]","росли́на; заво́д",null,3,"plant","[plɑːnt]","росли́на; заво́д",3,"plant","[plɑːnt]","росли́на; заво́д","@"]
[4,"laundry","[ˈlɔːndrɪ]","пра́льня",null,4,"laundry","[ˈlɔːndrɪ]","пра́льня",4,"laundry","[ˈlɔːndrɪ]","пра́льня","@"]
[5,"fix","[fɪks]","ла́годити, ремонтува́ти",null,5,"fix","[fɪks]","ла́годити, ремонтува́ти",5,"fix","[fɪks]","ла́годити, ремонтува́ти","@"]
[6,"tidy up","[ˈtaɪdɪ ʌp]","навести лад",null,6,"tidy up","[ˈtaɪdɪ ʌp]","навести лад",6,"tidy up","[ˈtaɪdɪ ʌp]","навести лад","@"]
[7,"share","[ʃɛə]","діли́тися",null,7,"share","[ʃɛə]","діли́тися",7,"share","[ʃɛə]","діли́тися","@"]
[8,"laundry plant share iron tidy up fix sweep",null,null,null,8,{"$f":"K9","v":"laundry plant share iron tidy up fix sweep"},null,null,8,{"$f":"CONCATENATE(K5,\" \",K4,\" \",K8,\" \",K2,\" \",K7,\" \",K6,\" \",K3,)","v":"laundry plant share iron tidy up fix sweep"}]
[]
[null,null,null,"Form 7",null,null,null,null,"Form 7"]
[1,{"$f":"B2","v":"iron"},"[ˈaɪən]","залі́зо",null,1,{"$f":"B12","v":"iron"},{"$f":"C12","v":"[ˈaɪən]"},{"$f":"D12","v":"залі́зо"}]
[2,"sweep","[swiːp]","пвдмвтати",null,2,{"$f":"B13","v":"sweep"},"[swiːp]","пвдмвтати"]
[3,"plant","[plɑːnt]","росли́на; заво́д",null,3,"plant","[plɑːnt]","росли́на; заво́д"]
[4,"laundry","[ˈlɔːndrɪ]","пра́льня",null,4,"laundry","[ˈlɔːndrɪ]","пра́льня"]
[5,"fix","[fɪks]","ла́годити, ремонтува́ти",null,5,"fix","[fɪks]","ла́годити, ремонтува́ти"]
[6,"tidy up","[ˈtaɪdɪ ʌp]","навести лад",null,6,"tidy up","[ˈtaɪdɪ ʌp]","навести лад"]
[7,"share","[ʃɛə]","діли́тися",null,7,"share","[ʃɛə]","діли́тися"]
[8,{"$f":"B9","v":"laundry plant share iron tidy up fix sweep"},null,null,null,8,{"$f":"B9","v":"laundry plant share iron tidy up fix sweep"}]
[]
[null,null,null,"Form 7",null,null,null,null,"Form 7"]
[1,{"$f":"B12","v":"iron"},"[ˈaɪən]","залі́зо",null,1,{"$f":"B22","v":"iron"},{"$f":"C22","v":"[ˈaɪən]"},{"$f":"D22","v":"залі́зо"}]
[2,"sweep","[swiːp]","пвдмвтати",null,2,{"$f":"B23","v":"sweep"},"[swiːp]","пвдмвтати"]
[3,"plant","[plɑːnt]","росли́на; заво́д",null,3,"plant","[plɑːnt]","росли́на; заво́д"]
[4,"laundry","[ˈlɔːndrɪ]","пра́льня",null,4,"laundry","[ˈlɔːndrɪ]","пра́льня"]
[5,"fix","[fɪks]","ла́годити, ремонтува́ти",null,5,"fix","[fɪks]","ла́годити, ремонтува́ти"]
[6,"tidy up","[ˈtaɪdɪ ʌp]","навести лад",null,6,"tidy up","[ˈtaɪdɪ ʌp]","навести лад"]
[7,"share","[ʃɛə]","діли́тися",null,7,"share","[ʃɛə]","діли́тися"]
[8,{"$f":"B19","v":"laundry plant share iron tidy up fix sweep"},null,null,null,8,{"$f":"B19","v":"laundry plant share iron tidy up fix sweep"}]
[]
[null,null,null,"Form 7",null,null,null,null,"Form 7"]
[1,{"$f":"B22","v":"iron"},"[ˈaɪən]","залі́зо",null,1,{"$f":"B32","v":"iron"},{"$f":"C32","v":"[ˈaɪən]"},{"$f":"D32","v":"залі́зо"}]
[2,"sweep","[swiːp]","пвдмвтати",null,2,{"$f":"B33","v":"sweep"},"[swiːp]","пвдмвтати"]
[3,"plant","[plɑːnt]","росли́на; заво́д",null,3,"plant","[plɑːnt]","росли́на; заво́д"]
[4,"laundry","[ˈlɔːndrɪ]","пра́льня",null,4,"laundry","[ˈlɔːndrɪ]","пра́льня"]
[5,"fix","[fɪks]","ла́годити, ремонтува́ти",null,5,"fix","[fɪks]","ла́годити, ремонтува́ти"]
[6,"tidy up","[ˈtaɪdɪ ʌp]","навести лад",null,6,"tidy up","[ˈtaɪdɪ ʌp]","навести лад"]
[7,"share","[ʃɛə]","діли́тися",null,7,"share","[ʃɛə]","діли́тися"]
[8,{"$f":"B29","v":"laundry plant share iron tidy up fix sweep"},null,null,null,8,{"$f":"B29","v":"laundry plant share iron tidy up fix sweep"}]
[]
[null,null,null,"Form 7",null,null,null,null,"Form 7"]
[1,{"$f":"B32","v":"iron"},"[ˈaɪən]","залі́зо",null,1,{"$f":"B42","v":"iron"},{"$f":"C42","v":"[ˈaɪən]"},{"$f":"D42","v":"залі́зо"}]
[2,"sweep","[swiːp]","пвдмвтати",null,2,{"$f":"B43","v":"sweep"},"[swiːp]","пвдмвтати"]
[3,"plant","[plɑːnt]","росли́на; заво́д",null,3,"plant","[plɑːnt]","росли́на; заво́д"]
[4,"laundry","[ˈlɔːndrɪ]","пра́льня",null,4,"laundry","[ˈlɔːndrɪ]","пра́льня"]
[5,"fix","[fɪks]","ла́годити, ремонтува́ти",null,5,"fix","[fɪks]","ла́годити, ремонтува́ти"]
[6,"tidy up","[ˈtaɪdɪ ʌp]","навести лад",null,6,"tidy up","[ˈtaɪdɪ ʌp]","навести лад"]
[7,"share","[ʃɛə]","діли́тися",null,7,"share","[ʃɛə]","діли́тися"]
[8,{"$f":"B39","v":"laundry plant share iron tidy up fix sweep"},null,null,null,8,{"$f":"B39","v":"laundry plant share iron tidy up fix sweep"}]

{"sheet":"1 (8)","index":9,"n_rows":49,"n_cols":17,"rows_kept":49,"cut":false,"hidden":false,"merged":[[8,1,8,3],[8,6,8,8],[8,10,8,12],[10,10,10,16],[18,1,18,3],[18,6,18,8],[28,1,28,3],[28,6,28,8],[38,1,38,3],[38,6,38,8],[48,1,48,3],[48,6,48,8]]}
[null,null,null,"Form 7",null,null,null,null,"Form 7"]
[{"$f":"J2","v":1},{"$f":"K2","v":"polite"},{"$f":"L2","v":"[pəˈlaɪt]"},{"$f":"M2","v":"вві́чливий, че́мний"},null,{"$f":"A2","v":1},{"$f":"B2","v":"polite"},{"$f":"C2","v":"[pəˈlaɪt]"},{"$f":"D2","v":"вві́чливий, че́мний"},1,"polite","[pəˈlaɪt]","вві́чливий, че́мний","@"]
[{"$f":"J3","v":2},"active","[ˈæktɪv]","акти́вний, жва́вий",null,{"$f":"A3","v":2},"active","[ˈæktɪv]","акти́вний, жва́вий",2,"active","[ˈæktɪv]","акти́вний, жва́вий","@"]
[3,"quiet","[ˈkwaɪət]","спокі́йний; ти́хий",null,3,"quiet","[ˈkwaɪət]","спокі́йний; ти́хий",3,"quiet","[ˈkwaɪət]","спокі́йний; ти́хий","@"]
[4,"lazy","[ˈleɪzɪ]","ліни́вий, леда́чий",null,4,"lazy","[ˈleɪzɪ]","ліни́вий, леда́чий",4,"lazy","[ˈleɪzɪ]","ліни́вий, леда́чий","@"]
[5,"creative","[krɪˈeɪtɪv]","тво́рчий",null,5,"creative","[krɪˈeɪtɪv]","тво́рчий",5,"creative","[krɪˈeɪtɪv]","тво́рчий","@"]
[6,"everyone","[ˈevrɪwʌn]","ко́жний; всі",null,6,"everyone","[ˈevrɪwʌn]","ко́жний; всі",6,"everyone","[ˈevrɪwʌn]","ко́жний; всі","@"]
[7,"laugh","[lɑːf]","сміх",null,7,"laugh","[lɑːf]","сміх",7,"laugh","[lɑːf]","сміх","@"]
[8,"lazy quiet laugh polite everyone creative active",null,null,null,8,{"$f":"K9","v":"lazy quiet laugh polite everyone creative active"},null,null,8,{"$f":"CONCATENATE(K5,\" \",K4,\" \",K8,\" \",K2,\" \",K7,\" \",K6,\" \",K3,)","v":"lazy quiet laugh polite everyone creative active"}]
[]
[null,null,null,"Form 7",null,null,null,null,"Form 7"]
[1,{"$f":"B2","v":"polite"},"[pəˈlaɪt]","вві́чливий, че́мний",null,1,{"$f":"B12","v":"polite"},{"$f":"C12","v":"[pəˈlaɪt]"},{"$f":"D12","v":"вві́чливий, че́мний"},1,{"$f":"K2","v":"polite"},"(",{"$f":"L2","v":"[pəˈlaɪt]"},")",{"$f":"M2","v":"вві́чливий, че́мний"},null,"@"]
[2,"active","[ˈæktɪv]","акти́вний, жва́вий",null,2,{"$f":"B13","v":"active"},"[ˈæktɪv]","акти́вний, жва́вий",2,"active","(","[ˈæktɪv]",")","акти́вний, жва́вий",null,"@"]
[3,"quiet","[ˈkwaɪət]","спокі́йний; ти́хий",null,3,"quiet","[ˈkwaɪət]","спокі́йний; ти́хий",3,"quiet","(","[ˈkwaɪət]",")","спокі́йний; ти́хий",null,"@"]
[4,"lazy","[ˈleɪzɪ]","ліни́вий, леда́чий",null,4,"lazy","[ˈleɪzɪ]","ліни́вий, леда́чий",4,"lazy","(","[ˈleɪzɪ]",")","ліни́вий, леда́чий",null,"@"]
[5,"creative","[krɪˈeɪtɪv]","тво́рчий",null,5,"creative","[krɪˈeɪtɪv]","тво́рчий",5,"creative","(","[krɪˈeɪtɪv]",")","тво́рчий",null,"@"]
[6,"everyone","[ˈevrɪwʌn]","ко́жний; всі",null,6,"everyone","[ˈevrɪwʌn]","ко́жний; всі",6,"everyone","(","[ˈevrɪwʌn]",")","ко́жний; всі",null,"@"]
[7,"laugh","[lɑːf]","сміх",null,7,"laugh","[lɑːf]","сміх",7,"laugh","(","[lɑːf]",")","сміх",null,"@"]
[8,{"$f":"B9","v":"lazy quiet laugh polite everyone creative active"},null,null,null,8,{"$f":"B9","v":"lazy quiet laugh polite everyone creative active"}]
[]
[null,null,null,"Form 7",null,null,null,null,"Form 7"]
[1,{"$f":"B12","v":"polite"},"[pəˈlaɪt]","вві́чливий, че́мний",null,1,{"$f":"B22","v":"polite"},{"$f":"C22","v":"[pəˈlaɪt]"},{"$f":"D22","v":"вві́чливий, че́мний"}]
[2,"active","[ˈæktɪv]","акти́вний, жва́вий",null,2,{"$f":"B23","v":"active"},"[ˈæktɪv]","акти́вний, жва́вий"]
[3,"quiet","[ˈkwaɪət]","спокі́йний; ти́хий",null,3,"quiet","[ˈkwaɪət]","спокі́йний; ти́хий"]
[4,"lazy","[ˈleɪzɪ]","ліни́вий, леда́чий",null,4,"lazy","[ˈleɪzɪ]","ліни́вий, леда́чий"]
[5,"creative","[krɪˈeɪtɪv]","тво́рчий",null,5,"creative","[krɪˈeɪtɪv]","тво́рчий"]
[6,"everyone","[ˈevrɪwʌn]","ко́жний; всі",null,6,"everyone","[ˈevrɪwʌn]","ко́жний; всі"]
[7,"laugh","[lɑːf]","сміх",null,7,"laugh","[lɑːf]","сміх"]
[8,{"$f":"B19","v":"lazy quiet laugh polite everyone creative active"},null,null,null,8,{"$f":"B19","v":"lazy quiet laugh polite everyone creative active"}]
[]
[null,null,null,"Form 7",null,null,null,null,"Form 7"]
[1,{"$f":"B22","v":"polite"},"[pəˈlaɪt]","вві́чливий, че́мний",null,1,{"$f":"B32","v":"polite"},{"$f":"C32","v":"[pəˈlaɪt]"},{"$f":"D32","v":"вві́чливий, че́мний"}]
[2,"active","[ˈæktɪv]","акти́вний, жва́вий",null,2,{"$f":"B33","v":"active"},"[ˈæktɪv]","акти́вний, жва́вий"]
[3,"quiet","[ˈkwaɪət]","спокі́йний; ти́хий",null,3,"quiet","[ˈkwaɪət]","спокі́йний; ти́хий"]
[4,"lazy","[ˈleɪzɪ]","ліни́вий, леда́чий",null,4,"lazy","[ˈleɪzɪ]","ліни́вий, леда́чий"]
[5,"creative","[krɪˈeɪtɪv]","тво́рчий",null,5,"creative","[krɪˈeɪtɪv]","тво́рчий"]
[6,"everyone","[ˈevrɪwʌn]","ко́жний; всі",null,6,"everyone","[ˈevrɪwʌn]","ко́жний; всі"]
[7,"laugh","[lɑːf]","сміх",null,7,"laugh","[lɑːf]","сміх"]
[8,{"$f":"B29","v":"lazy quiet laugh polite everyone creative active"},null,null,null,8,{"$f":"B29","v":"lazy quiet laugh polite everyone creative active"}]
[]
[null,null,null,"Form 7",null,null,null,null,"Form 7"]
[1,{"$f":"B32","v":"polite"},"[pəˈlaɪt]","вві́чливий, че́мний",null,1,{"$f":"B42","v":"polite"},{"$f":"C42","v":"[pəˈlaɪt]"},{"$f":"D42","v":"вві́чливий, че́мний"}]
[2,"active","[ˈæktɪv]","акти́вний, жва́вий",null,2,{"$f":"B43","v":"active"},"[ˈæktɪv]","акти́вний, жва́вий"]
[3,"quiet","[ˈkwaɪət]","спокі́йний; ти́хий",null,3,"quiet","[ˈkwaɪət]","спокі́йний; ти́хий"]
[4,"lazy","[ˈleɪzɪ]","ліни́вий, леда́чий",null,4,"lazy","[ˈleɪzɪ]","ліни́вий, леда́чий"]
[5,"creative","[krɪˈeɪtɪv]","тво́рчий",null,5,"creative","[krɪˈeɪtɪv]","тво́рчий"]
[6,"everyone","[ˈevrɪwʌn]","ко́жний; всі",null,6,"everyone","[ˈevrɪwʌn]","ко́жний; всі"]
[7,"laugh","[lɑːf]","сміх",null,7,"laugh","[lɑːf]","сміх"]
[8,{"$f":"B39","v":"lazy quiet laugh polite everyone creative active"},null,null,null,8,{"$f":"B39","v":"lazy quiet laugh polite everyone creative active"}]

{"sheet":"1 (9)","index":10,"n_rows":49,"n_cols":17,"rows_kept":49,"cut":false,"hidden":false,"merged":[[28,1,28,3],[28,6,28,8],[38,1,38,3],[38,6,38,8],[48,1,48,3],[48,6,48,8],[8,1,8,3],[8,6,8,8],[8,10,8,12],[10,10,10,16],[18,1,18,3],[18,6,18,8]]}
[null,null,null,"Form 7",null,null,null,null,"Form 7"]
[{"$f":"J2","v":1},{"$f":"K2","v":"boat"},{"$f":"L2","v":"[bəut]"},{"$f":"M2","v":"чо́вен; шлю́пка;"},null,{"$f":"A2","v":1},{"$f":"B2","v":"boat"},{"$f":"C2","v":"[bəut]"},{"$f":"D2","v":"чо́вен; шлю́пка;"},1,"boat","[bəut]","чо́вен; шлю́пка;","@"]
[{"$f":"J3","v":2},"coach","[kəuʧ]"," авто́бус",null,{"$f":"A3","v":2},"coach","[kəuʧ]"," авто́бус",2,"coach","[kəuʧ]"," авто́бус","@"]
[3,"motorbike","[ˈməutəbaɪk]","мотоцикл",null,3,"motorbike","[ˈməutəbaɪk]","мотоцикл",3,"motorbike","[ˈməutəbaɪk]","мотоцикл","@"]
[4,"scooter","[ˈskuːtə]","ску́тер",null,4,"scooter","[ˈskuːtə]","ску́тер",4,"scooter","[ˈskuːtə]","ску́тер","@"]
[5,"underground","[ˌʌndəˈgraund]","метро",null,5,"underground","[ˌʌndəˈgraund]","метро",5,"underground","[ˌʌndəˈgraund]","метро","@"]
[6,"where","[wɛə]","де, куди́",null,6,"where","[wɛə]","де, куди́",6,"where","[wɛə]","де, куди́","@"]
[7,"what","[wɒt]","яки́й, що",null,7,"what","[wɒt]","яки́й, що",7,"what","[wɒt]","яки́й, що","@"]
[8,"scooter motorbike what boat where underground coach",null,null,null,8,{"$f":"K9","v":"scooter motorbike what boat where underground coach"},null,null,8,{"$f":"CONCATENATE(K5,\" \",K4,\" \",K8,\" \",K2,\" \",K7,\" \",K6,\" \",K3,)","v":"scooter motorbike what boat where underground coach"}]
[]
[null,null,null,"Form 7",null,null,null,null,"Form 7"]
[1,{"$f":"B2","v":"boat"},"[bəut]","чо́вен; шлю́пка;",null,1,{"$f":"B12","v":"boat"},{"$f":"C12","v":"[bəut]"},{"$f":"D12","v":"чо́вен; шлю́пка;"},1,{"$f":"K2","v":"boat"},"(",{"$f":"L2","v":"[bəut]"},")",{"$f":"M2","v":"чо́вен; шлю́пка;"},null,"@"]
[2,"coach","[kəuʧ]"," авто́бус",null,2,{"$f":"B13","v":"coach"},"[kəuʧ]"," авто́бус",2,"coach","(","[kəuʧ]",")"," авто́бус",null,"@"]
[3,"motorbike","[ˈməutəbaɪk]","мотоцикл",null,3,"motorbike","[ˈməutəbaɪk]","мотоцикл",3,"motorbike","(","[ˈməutəbaɪk]",")","мотоцикл",null,"@"]
[4,"scooter","[ˈskuːtə]","ску́тер",null,4,"scooter","[ˈskuːtə]","ску́тер",4,"scooter","(","[ˈskuːtə]",")","ску́тер",null,"@"]
[5,"underground","[ˌʌndəˈgraund]","метро",null,5,"underground","[ˌʌndəˈgraund]","метро",5,"underground","(","[ˌʌndəˈgraund]",")","метро",null,"@"]
[6,"where","[wɛə]","де, куди́",null,6,"where","[wɛə]","де, куди́",6,"where","(","[wɛə]",")","де, куди́",null,"@"]
[7,"what","[wɒt]","яки́й, що",null,7,"what","[wɒt]","яки́й, що",7,"what","(","[wɒt]",")","яки́й, що",null,"@"]
[8,{"$f":"B9","v":"scooter motorbike what boat where underground coach"},null,null,null,8,{"$f":"B9","v":"scooter motorbike what boat where underground coach"}]
[]
[null,null,null,"Form 7",null,null,null,null,"Form 7"]
[1,{"$f":"B12","v":"boat"},"[bəut]","чо́вен; шлю́пка;",null,1,{"$f":"B22","v":"boat"},{"$f":"C22","v":"[bəut]"},{"$f":"D22","v":"чо́вен; шлю́пка;"}]
[2,"coach","[kəuʧ]"," авто́бус",null,2,{"$f":"B23","v":"coach"},"[kəuʧ]"," авто́бус"]
[3,"motorbike","[ˈməutəbaɪk]","мотоцикл",null,3,"motorbike","[ˈməutəbaɪk]","мотоцикл"]
[4,"scooter","[ˈskuːtə]","ску́тер",null,4,"scooter","[ˈskuːtə]","ску́тер"]
[5,"underground","[ˌʌndəˈgraund]","метро",null,5,"underground","[ˌʌndəˈgraund]","метро"]
[6,"where","[wɛə]","де, куди́",null,6,"where","[wɛə]","де, куди́"]
[7,"what","[wɒt]","яки́й, що",null,7,"what","[wɒt]","яки́й, що"]
[8,{"$f":"B19","v":"scooter motorbike what boat where underground coach"},null,null,null,8,{"$f":"B19","v":"scooter motorbike what boat where underground coach"}]
[]
[null,null,null,"Form 7",null,null,null,null,"Form 7"]
[1,{"$f":"B22","v":"boat"},"[bəut]","чо́вен; шлю́пка;",null,1,{"$f":"B32","v":"boat"},{"$f":"C32","v":"[bəut]"},{"$f":"D32","v":"чо́вен; шлю́пка;"}]
[2,"coach","[kəuʧ]"," авто́бус",null,2,{"$f":"B33","v":"coach"},"[kəuʧ]"," авто́бус"]
[3,"motorbike","[ˈməutəbaɪk]","мотоцикл",null,3,"motorbike","[ˈməutəbaɪk]","мотоцикл"]
[4,"scooter","[ˈskuːtə]","ску́тер",null,4,"scooter","[ˈskuːtə]","ску́тер"]
[5,"underground","[ˌʌndəˈgraund]","метро",null,5,"underground","[ˌʌndəˈgraund]","метро"]
[6,"where","[wɛə]","де, куди́",null,6,"where","[wɛə]","де, куди́"]
[7,"what","[wɒt]","яки́й, що",null,7,"what","[wɒt]","яки́й, що"]
[8,{"$f":"B29","v":"scooter motorbike what boat where underground coach"},null,null,null,8,{"$f":"B29","v":"scooter motorbike what boat where underground coach"}]
[]
[null,null,null,"Form 7",null,null,null,null,"Form 7"]
[1,{"$f":"B32","v":"boat"},"[bəut]","чо́вен; шлю́пка;",null,1,{"$f":"B42","v":"boat"},{"$f":"C42","v":"[bəut]"},{"$f":"D42","v":"чо́вен; шлю́пка;"}]
[2,"coach","[kəuʧ]"," авто́бус",null,2,{"$f":"B43","v":"coach"},"[kəuʧ]"," авто́бус"]
[3,"motorbike","[ˈməutəbaɪk]","мотоцикл",null,3,"motorbike","[ˈməutəbaɪk]","мотоцикл"]
[4,"scooter","[ˈskuːtə]","ску́тер",null,4,"scooter","[ˈskuːtə]","ску́тер"]
[5,"underground","[ˌʌndəˈgraund]","метро",null,5,"underground","[ˌʌndəˈgraund]","метро"]
[6,"where","[wɛə]","де, куди́",null,6,"where","[wɛə]","де, куди́"]
[7,"what","[wɒt]","яки́й, що",null,7,"what","[wɒt]","яки́й, що"]
[8,{"$f":"B39","v":"scooter motorbike what boat where underground coach"},null,null,null,8,{"$f":"B39","v":"scooter motorbike what boat where underground coach"}]

{"sheet":"1 (10)","index":11,"n_rows":49,"n_cols":17,"rows_kept":49,"cut":false,"hidden":false,"merged":[[8,1,8,3],[8,6,8,8],[8,10,8,12],[10,10,10,16],[18,1,18,3],[18,6,18,8],[28,1,28,3],[28,6,28,8],[38,1,38,3],[38,6,38,8],[48,1,48,3],[48,6,48,8]]}
[null,null,null,"Form 7",null,null,null,null,"Form 7"]
[{"$f":"J2","v":1},{"$f":"K2","v":"balcony"},{"$f":"L2","v":"белконі"},{"$f":"M2","v":"балкон"},null,{"$f":"A2","v":1},{"$f":"B2","v":"balcony"},{"$f":"C2","v":"белконі"},{"$f":"D2","v":"балкон"},1,"balcony","белконі","балкон","@"]
[{"$f":"J3","v":2},"ceiling","сі:лін","сте́ля",null,{"$f":"A3","v":2},"ceiling","сі:лін","сте́ля",2,"ceiling","сі:лін","сте́ля","@"]
[3,"cupboard","кабе:д","буфе́т",null,3,"cupboard","кабе:д","буфе́т",3,"cupboard","кабе:д","буфе́т","@"]
[4,"entrance","ентренс","вхід",null,4,"entrance","ентренс","вхід",4,"entrance","ентренс","вхід","@"]
[5,"sink","сінк","ра́ковина",null,5,"sink","сінк","ра́ковина",5,"sink","сінк","ра́ковина","@"]
[6,"ground","ґраунд","ґрунт",null,6,"ground","ґраунд","ґрунт",6,"ground","ґраунд","ґрунт","@"]
[7,"garage","ґера:ж","гараж",null,7,"garage","ґера:ж","гараж",7,"garage","ґера:ж","гараж","@"]
[8,"entrance cupboard garage balcony ground sink ceiling",null,null,null,8,{"$f":"K9","v":"entrance cupboard garage balcony ground sink ceiling"},null,null,8,{"$f":"CONCATENATE(K5,\" \",K4,\" \",K8,\" \",K2,\" \",K7,\" \",K6,\" \",K3,)","v":"entrance cupboard garage balcony ground sink ceiling"}]
[]
[null,null,null,"Form 7",null,null,null,null,"Form 7"]
[1,{"$f":"B2","v":"balcony"},"белконі","балкон",null,1,{"$f":"B12","v":"balcony"},{"$f":"C12","v":"белконі"},{"$f":"D12","v":"балкон"},1,{"$f":"K2","v":"balcony"},"(",{"$f":"L2","v":"белконі"},")",{"$f":"M2","v":"балкон"},null,"@"]
[2,"ceiling","сі:лін","сте́ля",null,2,{"$f":"B13","v":"ceiling"},"сі:лін","сте́ля",2,"ceiling","(","сі:лін",")","сте́ля",null,"@"]
[3,"cupboard","кабе:д","буфе́т",null,3,"cupboard","кабе:д","буфе́т",3,"cupboard","(","кабе:д",")","буфе́т",null,"@"]
[4,"entrance","ентренс","вхід",null,4,"entrance","ентренс","вхід",4,"entrance","(","ентренс",")","вхід",null,"@"]
[5,"sink","сінк","ра́ковина",null,5,"sink","сінк","ра́ковина",5,"sink","(","сінк",")","ра́ковина",null,"@"]
[6,"ground","ґраунд","ґрунт",null,6,"ground","ґраунд","ґрунт",6,"ground","(","ґраунд",")","ґрунт",null,"@"]
[7,"garage","ґера:ж","гараж",null,7,"garage","ґера:ж","гараж",7,"garage","(","ґера:ж",")","гараж",null,"@"]
[8,{"$f":"B9","v":"entrance cupboard garage balcony ground sink ceiling"},null,null,null,8,{"$f":"B9","v":"entrance cupboard garage balcony ground sink ceiling"}]
[]
[null,null,null,"Form 7",null,null,null,null,"Form 7"]
[1,{"$f":"B12","v":"balcony"},"белконі","балкон",null,1,{"$f":"B22","v":"balcony"},{"$f":"C22","v":"белконі"},{"$f":"D22","v":"балкон"}]
[2,"ceiling","сі:лін","сте́ля",null,2,{"$f":"B23","v":"ceiling"},"сі:лін","сте́ля"]
[3,"cupboard","кабе:д","буфе́т",null,3,"cupboard","кабе:д","буфе́т"]
[4,"entrance","ентренс","вхід",null,4,"entrance","ентренс","вхід"]
[5,"sink","сінк","ра́ковина",null,5,"sink","сінк","ра́ковина"]
[6,"ground","ґраунд","ґрунт",null,6,"ground","ґраунд","ґрунт"]
[7,"garage","ґера:ж","гараж",null,7,"garage","ґера:ж","гараж"]
[8,{"$f":"B19","v":"entrance cupboard garage balcony ground sink ceiling"},null,null,null,8,{"$f":"B19","v":"entrance cupboard garage balcony ground sink ceiling"}]
[]
[null,null,null,"Form 7",null,null,null,null,"Form 7"]
[1,{"$f":"B22","v":"balcony"},"белконі","балкон",null,1,{"$f":"B32","v":"balcony"},{"$f":"C32","v":"белконі"},{"$f":"D32","v":"балкон"}]
[2,"ceiling","сі:лін","сте́ля",null,2,{"$f":"B33","v":"ceiling"},"сі:лін","сте́ля"]
[3,"cupboard","кабе:д","буфе́т",null,3,"cupboard","кабе:д","буфе́т"]
[4,"entrance","ентренс","вхід",null,4,"entrance","ентренс","вхід"]
[5,"sink","сінк","ра́ковина",null,5,"sink","сінк","ра́ковина"]
[6,"ground","ґраунд","ґрунт",null,6,"ground","ґраунд","ґрунт"]
[7,"garage","ґера:ж","гараж",null,7,"garage","ґера:ж","гараж"]
[8,{"$f":"B29","v":"entrance cupboard garage balcony ground sink ceiling"},null,null,null,8,{"$f":"B29","v":"entrance cupboard garage balcony ground sink ceiling"}]
[]
[null,null,null,"Form 7",null,null,null,null,"Form 7"]
[1,{"$f":"B32","v":"balcony"},"белконі","балкон",null,1,{"$f":"B42","v":"balcony"},{"$f":"C42","v":"белконі"},{"$f":"D42","v":"балкон"}]
[2,"ceiling","сі:лін","сте́ля",null,2,{"$f":"B43","v":"ceiling"},"сі:лін","сте́ля"]
[3,"cupboard","кабе:д","буфе́т",null,3,"cupboard","кабе:д","буфе́т"]
[4,"entrance","ентренс","вхід",null,4,"entrance","ентренс","вхід"]
[5,"sink","сінк","ра́ковина",null,5,"sink","сінк","ра́ковина"]
[6,"ground","ґраунд","ґрунт",null,6,"ground","ґраунд","ґрунт"]
[7,"garage","ґера:ж","гараж",null,7,"garage","ґера:ж","гараж"]
[8,{"$f":"B39","v":"entrance cupboard garage balcony ground sink ceiling"},null,null,null,8,{"$f":"B39","v":"entrance cupboard garage balcony ground sink ceiling"}]

{"sheet":"1 (11)","index":12,"n_rows":49,"n_cols":17,"rows_kept":49,"cut":false,"hidden":false,"merged":[[28,1,28,3],[28,6,28,8],[38,1,38,3],[38,6,38,8],[48,1,48,3],[48,6,48,8],[8,1,8,3],[8,6,8,8],[8,10,8,12],[10,10,10,16],[18,1,18,3],[18,6,18,8]]}
[null,null,null,"Form 7",null,null,null,null,"Form 7"]
[{"$f":"J2","v":1},{"$f":"K2","v":"gate"},{"$f":"L2","v":"[geɪt]"},{"$f":"M2","v":"хвіртка"},null,{"$f":"A2","v":1},{"$f":"B2","v":"gate"},{"$f":"C2","v":"[geɪt]"},{"$f":"D2","v":"хвіртка"},1,"gate","[geɪt]","хвіртка","@"]
[{"$f":"J3","v":2},{"$f":"K3","v":"sounds perfect"},"(саунд пефект)","звучить чудово",null,{"$f":"A3","v":2},"sounds perfect","(саунд пефект)","звучить чудово",2,"sounds perfect","(саунд пефект)","звучить чудово","@"]
[3,"lorry","[ˈlɒrɪ]","вантажівка",null,3,"lorry","[ˈlɒrɪ]","вантажівка",3,"lorry","[ˈlɒrɪ]","вантажівка","@"]
[4,"sell","[sel]","продавати",null,4,"sell","[sel]","продавати",4,"sell","[sel]","продавати","@"]
[5,"brilliant","[ˈbrɪlɪənt]","блискучий, чудовий",null,5,"brilliant","[ˈbrɪlɪənt]","чудовий",5,"brilliant","[ˈbrɪlɪənt]","блискучий, чудовий","@"]
[6,{"$f":"K7","v":"buy (bought)"},"[baɪ][bɔːt]\n","купувати",null,6,"buy (bought)","[baɪ][bɔːt]\n","купувати",6,"buy (bought)","[baɪ][bɔːt]\n","купувати","@"]
[7,"look for","[lʊk] [fɔː] \n","шукати",null,7,"look for","[lʊk] [fɔː] \n","шукати",7,"look for","[lʊk] [fɔː] \n","шукати","@"]
[8,"sell lorry look for gate buy (bought) brilliant sounds perfect",null,null,null,8,{"$f":"K9","v":"sell lorry look for gate buy (bought) brilliant sounds perfect"},null,null,8,{"$f":"CONCATENATE(K5,\" \",K4,\" \",K8,\" \",K2,\" \",K7,\" \",K6,\" \",K3,)","v":"sell lorry look for gate buy (bought) brilliant sounds perfect"}]
[]
[null,null,null,"Form 7",null,null,null,null,"Form 7"]
[1,{"$f":"B2","v":"gate"},"[geɪt]","хвіртка",null,1,{"$f":"B12","v":"gate"},{"$f":"C12","v":"[geɪt]"},{"$f":"D12","v":"хвіртка"},1,{"$f":"K2","v":"gate"},"(",{"$f":"L2","v":"[geɪt]"},")",{"$f":"M2","v":"хвіртка"},null,"@"]
[2,"sounds perfect","(саунд пефект)","звучить чудово",null,2,{"$f":"B13","v":"sounds perfect"},"(саунд пефект)","звучить чудово",2,"sounds perfect","(","(саунд пефект)",")","звучить чудово",null,"@"]
[3,"lorry","[ˈlɒrɪ]","вантажівка",null,3,"lorry","[ˈlɒrɪ]","вантажівка",3,"lorry","(","[ˈlɒrɪ]",")","вантажівка",null,"@"]
[4,"sell","[sel]","продавати",null,4,"sell","[sel]","продавати",4,"sell","(","[sel]",")","продавати",null,"@"]
[5,"brilliant","[ˈbrɪlɪənt]","блискучий, чудовий",null,5,"brilliant","[ˈbrɪlɪənt]","блискучий, чудовий",5,"brilliant","(","[ˈbrɪlɪənt]",")","блискучий, чудовий",null,"@"]
[6,"buy (bought)","[baɪ][bɔːt]\n","купувати",null,6,"buy (bought)","[baɪ][bɔːt]\n","купувати",6,"buy (bought)","(","[baɪ][bɔːt]\n",")","купувати",null,"@"]
[7,"look for","[lʊk] [fɔː] \n","шукати",null,7,"look for","[lʊk] [fɔː] \n","шукати",7,"look for","(","[lʊk] [fɔː] \n",")","шукати",null,"@"]
[8,{"$f":"B9","v":"sell lorry look for gate buy (bought) brilliant sounds perfect"},null,null,null,8,{"$f":"B9","v":"sell lorry look for gate buy (bought) brilliant sounds perfect"}]
[]
[null,null,null,"Form 7",null,null,null,null,"Form 7"]
[1,{"$f":"B12","v":"gate"},"[geɪt]","хвіртка",null,1,{"$f":"B22","v":"gate"},{"$f":"C22","v":"[geɪt]"},{"$f":"D22","v":"хвіртка"}]
[2,"sounds perfect","(саунд пефект)","звучить чудово",null,2,{"$f":"B23","v":"sounds perfect"},"(саунд пефект)","звучить чудово"]
[3,"lorry","[ˈlɒrɪ]","вантажівка",null,3,"lorry","[ˈlɒrɪ]","вантажівка"]
[4,"sell","[sel]","продавати",null,4,"sell","[sel]","продавати"]
[5,"brilliant","[ˈbrɪlɪənt]","блискучий, чудовий",null,5,"brilliant","[ˈbrɪlɪənt]","блискучий, чудовий"]
[6,"buy (bought)","[baɪ][bɔːt]\n","купувати",null,6,"buy (bought)","[baɪ][bɔːt]\n","купувати"]
[7,"look for","[lʊk] [fɔː] \n","шукати",null,7,"look for","[lʊk] [fɔː] \n","шукати"]
[8,{"$f":"B19","v":"sell lorry look for gate buy (bought) brilliant sounds perfect"},null,null,null,8,{"$f":"B19","v":"sell lorry look for gate buy (bought) brilliant sounds perfect"}]
[]
[null,null,null,"Form 7",null,null,null,null,"Form 7"]
[1,{"$f":"B22","v":"gate"},"[geɪt]","хвіртка",null,1,{"$f":"B32","v":"gate"},{"$f":"C32","v":"[geɪt]"},{"$f":"D32","v":"хвіртка"}]
[2,"sounds perfect","(саунд пефект)","звучить чудово",null,2,{"$f":"B33","v":"sounds perfect"},"(саунд пефект)","звучить чудово"]
[3,"lorry","[ˈlɒrɪ]","вантажівка",null,3,"lorry","[ˈlɒrɪ]","вантажівка"]
[4,"sell","[sel]","продавати",null,4,"sell","[sel]","продавати"]
[5,"brilliant","[ˈbrɪlɪənt]","блискучий, чудовий",null,5,"brilliant","[ˈbrɪlɪənt]","блискучий, чудовий"]
[6,"buy (bought)","[baɪ][bɔːt]\n","купувати",null,6,"buy (bought)","[baɪ][bɔːt]\n","купувати"]
[7,"look for","[lʊk] [fɔː] \n","шукати",null,7,"look for","[lʊk] [fɔː] \n","шукати"]
[8,{"$f":"B29","v":"sell lorry look for gate buy (bought) brilliant sounds perfect"},null,null,null,8,{"$f":"B29","v":"sell lorry look for gate buy (bought) brilliant sounds perfect"}]
[]
[null,null,null,"Form 7",null,null,null,null,"Form 7"]
[1,{"$f":"B32","v":"gate"},"[geɪt]","хвіртка",null,1,{"$f":"B42","v":"gate"},{"$f":"C42","v":"[geɪt]"},{"$f":"D42","v":"хвіртка"}]
[2,"sounds perfect","(саунд пефект)","звучить чудово",null,2,{"$f":"B43","v":"sounds perfect"},"(саунд пефект)","звучить чудово"]
[3,"lorry","[ˈlɒrɪ]","вантажівка",null,3,"lorry","[ˈlɒrɪ]","вантажівка"]
[4,"sell","[sel]","продавати",null,4,"sell","[sel]","продавати"]
[5,"brilliant","[ˈbrɪlɪənt]","блискучий, чудовий",null,5,"brilliant","[ˈbrɪlɪənt]","блискучий, чудовий"]
[6,"buy (bought)","[baɪ][bɔːt]\n","купувати",null,6,"buy (bought)","[baɪ][bɔːt]\n","купувати"]
[7,"look for","[lʊk] [fɔː] \n","шукати",null,7,"look for","[lʊk] [fɔː] \n","шукати"]
[8,{"$f":"B39","v":"sell lorry look for gate buy (bought) brilliant sounds perfect"},null,null,null,8,{"$f":"B39","v":"sell lorry look for gate buy (bought) brilliant sounds perfect"}]

{"sheet":"1 (12)","index":13,"n_rows":49,"n_cols":17,"rows_kept":49,"cut":false,"hidden":false,"merged":[[28,1,28,3],[28,6,28,8],[38,1,38,3],[38,6,38,8],[48,1,48,3],[48,6,48,8],[8,1,8,3],[8,6,8,8],[8,10,8,12],[10,10,10,16],[18,1,18,3],[18,6,18,8]]}
[null,null,null,"Form 7",null,null,null,null,"Form 7"]
[{"$f":"J2","v":1},{"$f":"K2","v":"apartment"},{"$f":"L2","v":"епатмент"},{"$f":"M2","v":"кварти́ра"},null,{"$f":"A2","v":1},{"$f":"B2","v":"apartment"},{"$f":"C2","v":"епатмент"},{"$f":"D2","v":"кварти́ра"},1,"apartment","епатмент","кварти́ра","@"]
[{"$f":"J3","v":2},"with","ввіз","з",null,{"$f":"A3","v":2},"with","ввіз","з",2,"with","ввіз","з","@"]
[3,"near","ніе","бли́зько",null,3,"near","ніе","бли́зько",3,"near","ніе","бли́зько","@"]
[4,"centre","сенте","центр;",null,4,"centre","сенте","центр;",4,"centre","сенте","центр;","@"]
[5,"share","шее","діли́тися,",null,5,"share","шее","діли́тися,",5,"share","шее","діли́тися,","@"]
[6,"ninth","найнз","дев\"ятий",null,6,"ninth","найнз","дев\"ятий",6,"ninth","найнз","дев\"ятий","@"]
[7,0,0,0,null,7,0,0,0,7,null,null,null,"@"]
[8,"centre near  apartment ninth share with",null,null,null,8,{"$f":"K9","v":"centre near  apartment ninth share with"},null,null,8,{"$f":"CONCATENATE(K5,\" \",K4,\" \",K8,\" \",K2,\" \",K7,\" \",K6,\" \",K3,)","v":"centre near  apartment ninth share with"}]
[]
[null,null,null,"Form 7",null,null,null,null,"Form 7"]
[1,{"$f":"B2","v":"apartment"},"епатмент","кварти́ра",null,1,{"$f":"B12","v":"apartment"},{"$f":"C12","v":"епатмент"},{"$f":"D12","v":"кварти́ра"},1,{"$f":"K2","v":"apartment"},"(",{"$f":"L2","v":"епатмент"},")",{"$f":"M2","v":"кварти́ра"},null,"@"]
[2,"with","ввіз","з",null,2,{"$f":"B13","v":"with"},"ввіз","з",2,"with","(","ввіз",")","з",null,"@"]
[3,"near","ніе","бли́зько",null,3,"near","ніе","бли́зько",3,"near","(","ніе",")","бли́зько",null,"@"]
[4,"centre","сенте","центр;",null,4,"centre","сенте","центр;",4,"centre","(","сенте",")","центр;",null,"@"]
[5,"share","шее","діли́тися,",null,5,"share","шее","діли́тися,",5,"share","(","шее",")","діли́тися,",null,"@"]
[6,"ninth","найнз","дев\"ятий",null,6,"ninth","найнз","дев\"ятий",6,"ninth","(","найнз",")","дев\"ятий",null,"@"]
[7,0,0,0,null,7,0,0,0,7,0,"(",0,")",0,null,"@"]
[8,{"$f":"B9","v":"centre near  apartment ninth share with"},null,null,null,8,{"$f":"B9","v":"centre near  apartment ninth share with"}]
[]
[null,null,null,"Form 7",null,null,null,null,"Form 7"]
[1,{"$f":"B12","v":"apartment"},"епатмент","кварти́ра",null,1,{"$f":"B22","v":"apartment"},{"$f":"C22","v":"епатмент"},{"$f":"D22","v":"кварти́ра"}]
[2,"with","ввіз","з",null,2,{"$f":"B23","v":"with"},"ввіз","з"]
[3,"near","ніе","бли́зько",null,3,"near","ніе","бли́зько"]
[4,"centre","сенте","центр;",null,4,"centre","сенте","центр;"]
[5,"share","шее","діли́тися,",null,5,"share","шее","діли́тися,"]
[6,"ninth","найнз","дев\"ятий",null,6,"ninth","найнз","дев\"ятий"]
[7,0,0,0,null,7,0,0,0]
[8,{"$f":"B19","v":"centre near  apartment ninth share with"},null,null,null,8,{"$f":"B19","v":"centre near  apartment ninth share with"}]
[]
[null,null,null,"Form 7",null,null,null,null,"Form 7"]
[1,{"$f":"B22","v":"apartment"},"епатмент","кварти́ра",null,1,{"$f":"B32","v":"apartment"},{"$f":"C32","v":"епатмент"},{"$f":"D32","v":"кварти́ра"}]
[2,"with","ввіз","з",null,2,{"$f":"B33","v":"with"},"ввіз","з"]
[3,"near","ніе","бли́зько",null,3,"near","ніе","бли́зько"]
[4,"centre","сенте","центр;",null,4,"centre","сенте","центр;"]
[5,"share","шее","діли́тися,",null,5,"share","шее","діли́тися,"]
[6,"ninth","найнз","дев\"ятий",null,6,"ninth","найнз","дев\"ятий"]
[7,0,0,0,null,7,0,0,0]
[8,{"$f":"B29","v":"centre near  apartment ninth share with"},null,null,null,8,{"$f":"B29","v":"centre near  apartment ninth share with"}]
[]
[null,null,null,"Form 7",null,null,null,null,"Form 7"]
[1,{"$f":"B32","v":"apartment"},"епатмент","кварти́ра",null,1,{"$f":"B42","v":"apartment"},{"$f":"C42","v":"епатмент"},{"$f":"D42","v":"кварти́ра"}]
[2,"with","ввіз","з",null,2,{"$f":"B43","v":"with"},"ввіз","з"]
[3,"near","ніе","бли́зько",null,3,"near","ніе","бли́зько"]
[4,"centre","сенте","центр;",null,4,"centre","сенте","центр;"]
[5,"share","шее","діли́тися,",null,5,"share","шее","діли́тися,"]
[6,"ninth","найнз","дев\"ятий",null,6,"ninth","найнз","дев\"ятий"]
[7,0,0,0,null,7,0,0,0]
[8,{"$f":"B39","v":"centre near  apartment ninth share with"},null,null,null,8,{"$f":"B39","v":"centre near  apartment ninth share with"}]

{"sheet":"Лист1","index":14,"n_rows":7,"n_cols":1,"rows_kept":7,"cut":false,"hidden":false,"merged":[]}
["where"]
["what"]
["underground"]
["scooter"]
["motorbike"]
["coach"]
["boat"]